Cogmind - Beta 15 @@@ ROGUE MODE // 2025.05.18 @ 00:12:24 Player: Savant Result: Destroyed by Executioner with Helical Railgun Performance ------------- Evolutions (8) 4000 Regions Visited (29) 5800 Robots Destroyed (536) 2680 Value Destroyed (30853) 30853 Prototype IDs (159) 3180 Alien Tech Used (6) 1200 Bonus (17579) 17579 TOTAL SCORE: 65292 Bonus ------- High Alert Combat Kills 6101 Follower Combat Kills 6017 Entered Garrisons 1200 Used RIF Installer 3500 Registered with UFD 300 Met Optimus in HQ 500 Met Optimus at Protoforge 1000 Friendly Fire -1039 Cogmind --------- Core Integrity 0/1450 Matter 300/300 Energy 40/600 System Corruption 17% Temperature Cool (8) Movement Hovering (96) Ox1 Location -2/Protoforge Parts ------- > --- POWER (2) -------- Improved Quantum Reactor Improved Quantum Reactor > --- PROPULSION (8) --- Improved Antigrav System Cooled Antigrav System Cooled Antigrav System Antigrav Array Antigrav Array Combat Linear Gravjet > --- UTILITY (10) ----- High-capacity Storage Unit Experimental Optical Array Experimental Signal Interpreter Experimental Melee Analysis Suite Experimental Core Analyzer Heavy Regenerative Plating Improved Remote Force Field Relay Coupler [NC] (16) Relay Coupler [Proto] (3) > --- WEAPON (3) ------- Helical Railgun Compact Linear Accelerator Advanced Remote Datajack > --- INVENTORY (20) --- Backup Power VII Hybrid Graviton Reactor Hybrid Graviton Reactor Concept Chromion Battery (270) Experimental Sensor Array Advanced Kinecellerator Experimental Reaction Control System Advanced Powered Armor Transdimensional Reconstructor Improved KE Penetrator Railgun Compact Linear Accelerator Nanosword Sigix Broadsword Peak State ------------ > --- POWER ------------ Backup Power VII Improved Quantum Reactor > --- PROPULSION ------- Cooled Antigrav System Cooled Antigrav System Antigrav Array Antigrav Array Gravjet Array > --- UTILITY ---------- High-capacity Storage Unit Experimental Optical Array Experimental Signal Interpreter Experimental Melee Analysis Suite Experimental Core Analyzer Experimental Reaction Control System Heavy Regenerative Plating Relay Coupler [NC] Relay Coupler [Proto] > --- WEAPON ----------- Compact Linear Accelerator Sigix Broadsword > --- INVENTORY -------- Combat Linear Gravjet Concept Chromion Battery Experimental Sensor Array Advanced Kinecellerator Advanced Powered Armor Graphene Brace Transdimensional Reconstructor Omega Cannon Nanosword UFD Drillbomb [Rating: 218] Favorites ----------- Power Cold Fusion Reactor Engine Cooled Deuterium Engine Power Core Enhanced Fission Core Reactor Cold Fusion Reactor Propulsion Centrium Leg Treads Improved Treads Leg Centrium Leg Wheel Armored Wheel Hover Unit Combat Airjet Utility High-capacity Storage Unit Device Seismic Detector Storage High-capacity Storage Unit Processor Core Analyzer Hackware Relay Coupler [NC] Protection Hardened Light Armor Plating Artifact Phase Redirector Weapon Enhanced Nova Cannon Energy Gun Thermic Laser Energy Cannon Enhanced Nova Cannon Ballistic Gun Enhanced Autogun Ballistic Cannon Compact Linear Accelerator Launcher Hellfire Missile Launcher Special Weapon Advanced Remote Datajack Impact Weapon Power Maul Slashing Weapon Nanosword Piercing Weapon Plasma Lance Special Melee Weapon Advanced Datajack Build | -11 -10 -10 -9 -9 -9 -8 -8 -8 -8 -8 -6 -6 -5 -5 -5 -5 -4 -4 -4 -4 -4 -4 -4 -4 -3 -3 -2 -2 -2 ------- Run | Yrd Mat Min Mat Min Exi Min Mat Sto Rec Scr Fac Gar Fac Gar Fac Gar Fac Was Fac Gar Fac Gar Fac Gar Res Tes Res Qua Frg Slots Evolved 16 | . . . 2 . . . 2 . . . 4 . 2 . . . 2 . . . . . . . 2 . 2 . . Power 1 | . . . . . . . . . . . . . . . . . 1 . . . . . . . . . . . . Propulsion 6 | . . . 1 . . . . . . . 1 . 2 . . . . . . . . . . . 1 . 1 . . Utility 8 | . . . 1 . . . 2 . . . 2 . . . . . 1 . . . . . . . 1 . 1 . . Weapon 1 | . . . . . . . . . . . 1 . . . . . . . . . . . . . . . . . . Parts Attached 459 | 7 10 6 26 1 . 5 31 10 1 8 25 3 20 12 12 19 1 3 18 15 25 18 5 10 24 36 44 13 51 Power 54 | 1 . 3 3 . . . 4 1 . . 1 1 2 . 1 1 . 2 1 2 2 1 . . . 7 9 2 10 Engine 12 | 1 . 2 2 . . . 3 1 . . 1 . . . 1 . . . . . . . . . . . 1 . . Core 9 | . . 1 1 . . . 1 . . . . 1 2 . . . . . . 1 . . . . . . . 1 1 Reactor 33 | . . . . . . . . . . . . . . . . 1 . 2 1 1 2 1 . . . 7 8 1 9 Propulsion 116 | 2 3 . 10 1 . 1 13 . . 1 4 . 8 . 2 9 . . 3 1 5 3 2 1 5 13 19 1 9 Treads 33 | 1 1 . 10 1 . 1 12 . . . 2 . 1 . . . . . 2 1 . . . . . . 1 . . Leg 37 | . . . . . . . . . . . . . . . . 8 . . . . 3 3 2 1 5 11 4 . . Wheel 8 | 1 2 . . . . . 1 . . 1 2 . . . . . . . . . . . . . . 1 . . . Hover 38 | . . . . . . . . . . . . . 7 . 2 1 . . 1 . 2 . . . . 1 14 1 9 Flight . | . . . . . . . . . . . . . . . . . . . . . . . . . . . . . . Utility 199 | 2 3 1 8 . . . 9 5 1 5 14 2 7 6 8 5 1 . 13 11 15 9 3 8 14 6 12 9 22 Device 66 | 1 2 . 2 . . . 4 1 . 1 4 1 2 1 1 3 . . 8 3 5 1 . 2 2 4 4 2 12 Storage 10 | 1 1 1 1 . . . . . . . 2 . . . . 1 . . . . 1 . . . . . 1 . 1 Processor 13 | . . . . . . . . . . 2 3 . 2 . . . . . . . 1 . . . 1 . . 1 3 Hackware 70 | . . . . . . . 1 . . 2 1 1 3 3 5 1 1 . 4 5 8 6 3 6 8 1 3 5 3 Protection 39 | . . . 5 . . . 4 4 1 . 4 . . 2 2 . . . 1 3 . 2 . . 3 1 4 . 3 Artifact 1 | . . . . . . . . . . . . . . . . . . . . . . . . . . . . 1 . Weapon 90 | 2 4 2 5 . . 4 5 4 . 2 6 . 3 6 1 4 . 1 1 1 3 5 . 1 5 10 4 1 10 Energy Gun 8 | 1 . . . . . 2 . . . . 3 . . . . . . . . . . . . . . 1 . . 1 Energy Cannon 22 | . . . 1 . . . . 1 . . 1 . 1 2 . 3 . 1 1 . 2 4 . . 2 2 1 . . Ballistic Gun 14 | 1 1 2 1 . . 1 3 . . . 1 . . . . . . . . . . . . . . . . . 4 Ballistic Cannon 2 | . . . . . . . . . . . . . . . . . . . . . . . . . . . . . 2 Launcher 9 | . . . 1 . . 1 1 3 . . . . . . 1 . . . . 1 . . . . . 1 . . . Special Weapon 22 | . 2 . . . . . . . . 1 1 . 1 2 . 1 . . . . 1 1 . 1 3 3 2 . 3 Impact Weapon 6 | . 1 . 2 . . . . . . 1 . . 1 1 . . . . . . . . . . . . . . . Slashing Weapon 5 | . . . . . . . 1 . . . . . . 1 . . . . . . . . . . . 2 . 1 . Piercing Weapon 1 | . . . . . . . . . . . . . . . . . . . . . . . . . . 1 . . . Special Melee Weapon 1 | . . . . . . . . . . . . . . . . . . . . . . . . . . . 1 . . Unidentified Prototypes 25 | . . . 1 . . . . 2 . . . 1 . . . . . . 1 . 2 . . 1 . 3 . 3 11 Corrupted Parts 8 | . . . . . . . . . . 2 . . . . . . . . . . . . . . . 6 . . . System Corruption 28 | . . . . . . . . . . 6 . . . . . . . . . . . . . . . 22 . . . Parts Lost 102 | . 1 1 1 . . . 9 1 . . 2 2 13 1 6 9 . . 1 5 3 5 . 1 7 9 15 . 10 Power 15 | . . 1 . . . . 1 . . . . . 2 . . 2 . . . 1 1 . . . 1 1 3 . 2 Propulsion 38 | . . . . . . . 2 . . . . . 6 . 1 3 . . 1 . . 2 . . 2 6 9 . 6 Utility 25 | . 1 . . . . . 5 . . . . 1 3 1 4 . . . . 3 . . . 1 2 1 2 . 1 Weapon 24 | . . . 1 . . . 1 1 . . 2 1 2 . 1 4 . . . 1 2 3 . . 2 1 1 . 1 Highest Loss Streak 12 | . 1 1 1 . . . 3 1 . . 1 1 12 1 3 5 . . 1 2 2 2 . 1 2 2 10 . 2 To Critical Strikes 1 | . . . . . . . . . . . 1 . . . . . . . . . . . . . . . . . . Average Backups 18 | 3 8 13 18 19 20 20 19 19 19 19 22 24 19 18 18 17 13 17 17 17 18 23 25 24 23 23 19 18 11 Power . | . 1 . 1 1 1 1 . . . . . 1 . 1 . . . 1 2 . . 1 1 . . . . . 1 Propulsion 3 | 2 2 2 3 4 5 5 6 5 6 5 7 9 3 1 1 3 2 3 3 2 2 3 3 3 2 3 2 1 . Utility 8 | . 1 3 5 5 5 5 4 5 8 9 8 8 7 8 9 8 7 8 10 12 14 16 19 18 18 13 11 8 4 Weapon 4 | . 3 6 7 7 8 8 6 5 4 3 5 5 7 6 4 4 3 2 1 1 . 1 1 1 2 6 3 3 2 Tool/Special . | . . . . . . . . . . . . . . . . . . . . . . . . . . . . . . Unused Backups 100 | . 2 . 7 3 . . 5 4 1 9 4 4 1 5 5 1 . 2 6 5 9 3 1 2 2 10 1 . 8 Power 14 | . . . 1 . . . 2 . . 1 1 . . . . . . . 1 2 2 1 . 1 . . . . 2 Propulsion 16 | . 2 . 1 . . . 1 1 . 3 1 . . . . . . 2 1 1 2 . . . . . . . 1 Utility 38 | . . . 2 3 . . . . . 4 1 2 . 4 4 . . . 3 2 3 2 1 . 1 2 1 . 3 Weapon 27 | . . . 3 . . . 1 2 1 1 1 2 1 1 1 1 . . 1 . 2 . . . . 8 . . 1 Tool/Special 5 | . . . . . . . 1 1 . . . . . . . . . . . . . . . 1 1 . . . 1 Average Slot Usage (%) 95 | . 98 100 99 100 100 100 99 99 100 99 97 92 95 98 99 85 89 92 94 93 99 98 100 98 99 99 91 86 81 Engine 3 | . 14 9 6 11 11 11 6 9 9 9 6 2 . . . . . . . . . . . . . . . . . Core 1 | . . 4 4 . . . 2 . . . . 3 4 5 4 . . . . 3 5 3 . . . . . . 2 Reactor 3 | . . . . . . . . . . . . . . . . 3 5 8 10 6 5 6 10 10 8 8 7 8 5 Treads 11 | . 24 27 29 33 33 33 26 27 27 23 13 13 5 . . . . . 2 5 . . . . . . 1 . . Leg 8 | . . . . . . . . . . . . . . . . 16 26 26 23 21 29 30 31 31 32 31 8 . . Wheel 1 | . 3 . 3 . . . . . . 3 12 6 3 . . . . . . . . . . . . . . . . Hover 6 | . . . . . . . . . . . . . 21 34 35 8 . . . . 1 . . . . . 18 30 25 Device 9 | . 12 14 14 21 22 12 19 17 18 9 6 6 3 . 1 3 10 10 8 8 9 7 5 11 5 6 5 4 4 Storage 6 | . 14 14 11 11 11 11 9 9 9 9 6 6 5 5 5 7 5 5 5 5 5 5 5 5 4 4 4 4 4 Processor 6 | . . . . . . . . . . 6 11 13 15 17 11 11 10 10 10 9 2 . . . 3 4 4 4 14 Hackware 11 | . . . . . . . 6 9 7 3 7 8 11 10 16 14 15 15 16 14 24 23 29 21 23 21 23 20 11 Protection 5 | . . . 7 . . 9 9 9 10 16 10 10 1 3 2 . . . . 2 . 4 . 2 3 3 2 4 3 Energy Cannon 4 | . . . 9 11 11 10 . . . . 3 6 4 4 4 9 10 10 10 9 9 9 10 8 8 1 . . . Ballistic Gun 5 | . 22 28 8 10 11 10 10 15 9 9 4 4 . . . . . . . . . . . . . . . . . Special Weapon 1 | . 1 . . . . . . . . . . . 3 4 4 2 5 5 4 4 4 5 5 5 3 1 . . . Impact Weapon 1 | . 3 . 4 . . . . . . 7 3 1 4 5 5 1 . . . . . . . . . . . . . Slashing Weapon 2 | . . . . . . . 7 2 9 1 . . . . . . . . . . . . . . . 7 6 7 5 Peak Build Rating 218 | 7 8 13 22 24 24 26 38 37 36 42 67 70 93 94 96 129 129 141 147 147 147 140 139 143 159 169 184 203 218 Average Rating 99 | 5 7 10 18 21 22 24 31 34 35 39 59 68 82 89 91 109 128 138 141 140 140 135 135 138 146 160 174 195 202 On Entrance 86 | . 7 8 13 22 22 24 25 34 36 36 41 67 69 93 94 78 127 129 141 142 145 140 139 135 140 134 161 183 202 Naked Turns . | . . . . . . . . . . . . . . . . . . . . . . . . . . . . . . Heaviest Build 150 | 13 18 32 61 61 61 62 68 66 66 66 129 134 121 73 70 94 94 110 116 114 138 143 142 144 150 150 146 101 138 Greatest Support 195 | 10 40 40 66 66 66 66 69 69 69 69 28 28 72 72 69 180 180 180 180 120 173 170 163 163 188 195 157 101 120 Greatest Overweight (x) 10 | 1 1 . 3 . . . 5 . . 2 10 4 8 1 1 2 . . . . . 1 . 1 . 6 6 . 1 Average Overweight (x) . | . . . . . . . . . . . 3 4 . . . . . . . . . . . . . . . . . Largest Inventory Capacity 25 | 8 10 15 20 20 20 20 20 20 20 20 25 25 25 20 20 20 20 20 20 20 25 25 25 25 25 25 25 20 20 Average Capacity 20 | 7 8 14 19 20 20 20 20 20 20 20 23 25 21 20 20 20 20 20 20 20 20 25 25 25 25 25 21 20 20 Most Carried 25 | 7 9 15 20 20 20 20 20 20 20 20 25 25 25 20 20 20 15 20 20 20 22 25 25 25 25 25 25 20 20 Average Carried 19 | 4 8 13 18 19 20 20 19 19 19 19 22 24 20 19 19 18 14 19 19 18 19 23 25 24 23 24 21 19 16 Final Capacity 25 | 8 10 15 20 20 20 20 20 20 20 20 25 25 20 20 20 20 20 20 20 20 25 25 25 25 25 25 20 20 20 Final Carried 25 | 7 9 15 20 20 20 20 20 20 20 20 25 25 20 20 17 15 15 20 20 20 22 25 25 25 22 25 20 20 15 Class Distribution -------------------- 34% | Mutant 9% | Botlord-Mutant 7% | Scavenger-Mutant 5% | Botlord-Tank 4% | Scavenger-Scout 4% | Hacker-Mutant 4% | Botlord-Gunner 4% | Gunner 4% | Machinist-Mutant 3% | Hacker-Tank 3% | Scavenger-Gladiator 3% | Bothacker-Gunner Dominant Class ---------------- Mutant | -10/Materials Mutant | -10/Mines Scavenger-Mutant | -9/Materials Mutant | -9/Mines Mutant | -9/Exiles Mutant | -8/Mines Scavenger-Mutant | -8/Materials Mutant | -8/Storage Mutant | -8/Recycling Mutant | -8/Scraptown Mutant | -6/Factory Gunner | -6/Garrison Mutant | -5/Factory Machinist-Mutant | -5/Garrison Machinist-Mutant | -5/Factory Bothacker-Gunner | -5/Garrison Hacker-Gunner | -4/Factory Hacker-Gunner | -4/Waste Hacker-Tank | -4/Factory Bothacker-Tank | -4/Garrison Botlord-Gunner | -4/Factory Botlord-Tank | -4/Garrison Botlord-Gunner | -4/Factory Botlord-Tank | -4/Garrison Botlord-Skirmisher | -3/Research Botlord-Mutant | -3/Testing Botlord-Mutant | -2/Research Botlord-Mutant | -2/Quarantine Scavenger-Scout | -2/Protoforge Resources | -11 -10 -10 -9 -9 -9 -8 -8 -8 -8 -8 -6 -6 -5 -5 -5 -5 -4 -4 -4 -4 -4 -4 -4 -4 -3 -3 -2 -2 -2 ----------- Run | Yrd Mat Min Mat Min Exi Min Mat Sto Rec Scr Fac Gar Fac Gar Fac Gar Fac Was Fac Gar Fac Gar Fac Gar Res Tes Res Qua Frg Matter Collected 22167 | 253 446 209 730 261 . 193 755 1014 20 73 788 362 492 476 380 420 . 275 905 781 851 695 171 632 534 1281 1178 457 7535 Remotely 91 | . . . . . . . . . . . . . . . . . . . 91 . . . . . . . . . . Salvage Created 25812 | 39 437 153 1140 73 . 290 1487 970 111 . 1322 867 520 573 254 523 . . 1815 858 857 1008 120 1017 585 1912 1964 467 6450 Parts 1194 | 6 16 1 67 5 . 17 72 68 8 . 38 44 21 21 20 24 . . 93 32 35 43 4 48 27 86 101 20 277 Haulers Intercepted 9 | . 2 . 3 . . . 3 1 . . . . . . . . . . . . . . . . . . . . . Recyclers Shooed 11 | 1 . . 1 . . . . 2 . . 2 . . . 2 . . . 2 . . . . . . . . 1 . Parts Field Recycled . | . . . . . . . . . . . . . . . . . . . . . . . . . . . . . . Retrieved Matter . | . . . . . . . . . . . . . . . . . . . . . . . . . . . . . . Parts Self-Destructed . | . . . . . . . . . . . . . . . . . . . . . . . . . . . . . . Prevented . | . . . . . . . . . . . . . . . . . . . . . . . . . . . . . . Kills | -11 -10 -10 -9 -9 -9 -8 -8 -8 -8 -8 -6 -6 -5 -5 -5 -5 -4 -4 -4 -4 -4 -4 -4 -4 -3 -3 -2 -2 -2 ------- Run | Yrd Mat Min Mat Min Exi Min Mat Sto Rec Scr Fac Gar Fac Gar Fac Gar Fac Was Fac Gar Fac Gar Fac Gar Res Tes Res Qua Frg Combat Hostiles Destroyed 449 | . 5 4 30 2 . 8 24 18 1 . 20 29 16 18 8 13 . . 23 11 11 16 1 15 9 25 22 6 114 Melee 100 | . 2 . . . . . 14 2 1 . . . 8 4 2 . . . . . . . . . 1 18 14 4 30 Guns 58 | . 2 4 7 2 . 2 7 16 . . 9 7 . . . . . . . . . . . . . 1 . . 1 Cannons 148 | . . . 12 . . 3 . . . . 7 5 1 1 1 7 . . 18 7 11 9 1 14 5 2 1 . 43 AOE 109 | . . . 11 . . 3 3 . . . . 16 5 9 5 5 . . . 1 . . . 1 . 2 6 2 40 Classes Destroyed 28 | 1 5 2 4 . . 2 1 . . . 2 3 . 1 . . . . . . . . . . . 1 . . 6 Worker 14 | . . . 1 . . . 2 1 . . 1 . 1 . . . . . 4 . 1 . . . 1 1 . 1 . Builder 17 | . . . 1 . . . 3 . . . 1 . . . 2 . . . 1 . . . . . 1 1 3 1 3 Tunneler 2 | 2 . . . . . . . . . . . . . . . . . . . . . . . . . . . . . Hauler 9 | . 2 . 3 . . . 3 1 . . . . . . . . . . . . . . . . . . . . . Recycler 17 | . 1 . . . . 1 1 1 1 . 1 . . . . . . . 1 . 2 . . . . 2 5 1 . Mechanic 9 | . . . . . . . . . . . . . . . . . . . . . . . . . . . . . 9 Operator 3 | . . . . . . . 2 1 . . . . . . . . . . . . . . . . . . . . . Drone 14 | . . . . . . . . . . . . . . . . . . . . . . . . . . . . . 14 Watcher 9 | . 2 . 1 . . . 2 . . . . . . . . . . . 1 . . . . . . 1 . 1 1 Swarmer 78 | . . . 11 . . 4 . 5 . . 3 15 8 6 2 2 . . . 1 3 4 . . . . 1 2 11 Cutter 9 | . . . . . . . . . . . . 2 . 1 3 . . . . . . . . . 1 . 2 . . Saboteur 6 | . . . . . . . . . . . . 1 . 2 . . . . . . . . . 1 . . . . 2 Grunt 121 | . 4 2 11 2 . 2 14 4 . . 9 4 6 2 1 2 . . 5 2 2 3 . 11 1 4 11 . 19 Brawler 11 | . . . . . . 1 1 . . . 1 1 . 1 1 . . . . . . 1 . 1 . . . . 3 Duelist 5 | . . . . . . . . . . . . 1 . . . . . . . . . . . . . . . . 4 Protector 6 | . . . . . . . . . . . . . . . . . . . . . . . . . . . . . 6 Researcher 1 | . . . . . . . . . . . . . . . . . . . . . . . . . . 1 . . . Sentry 50 | . . . 8 . . . 7 9 1 . 4 3 1 3 1 1 . . 3 3 1 2 . . . . 1 . 2 Demolisher 1 | . . 1 . . . . . . . . . . . . . . . . . . . . . . . . . . . Specialist 7 | . . . . . . . . . . . . . . 2 . 5 . . . . . . . . . . . . . Hunter 30 | . . . . . . 1 2 . . . . . 1 1 . . . . 2 2 . 3 . 1 3 4 . 2 8 Programmer 77 | . . . . . . . . . . . 2 2 . . . 3 . . 13 2 5 3 . 2 4 17 8 2 14 Behemoth 3 | . . . . . . . . . . . 1 . . . . . . . . 1 . . 1 . . . . . . Hotshot 10 | . . . . . . . . . . . . . . . . . . . . . . . . . . . . . 10 Immortal 2 | . . . . . . . . . . . . . . . . . . . . . . . . . . . . . 2 Striker 9 | . . . . . . . . . . . . . . . . . . . . . . . . . . . . . 9 Executioner 12 | . . . . . . . . . . . . . . . . . . . . . . . . . . . . . 12 Subdweller 1 | . 1 . . . . . . . . . . . . . . . . . . . . . . . . . . . . Scrapoid 3 | . . . . . . . . . . . . . . . . . . . . . . . . . . . . . 3 Assembled 1 | . . 1 . . . . . . . . . . . . . . . . . . . . . . . . . . . Best Kill Streak 13 | 2 2 2 4 2 . 4 7 3 1 . 3 7 5 4 5 5 . . 4 3 3 5 1 3 4 3 13 3 7 Combat Bots Only 8 | . 2 2 4 2 . 4 5 3 1 . 3 7 5 4 3 5 . . 3 3 3 5 1 3 3 3 8 2 7 Max Kills in Single Turn 6 | 1 1 1 4 1 . 2 2 2 1 . 2 4 5 4 3 1 . . 1 1 1 1 1 1 1 2 6 1 4 Gunslinging 1 | . . . . . . . . 1 . . . . . . . . . . . . . . . . . . . . . Exploded 5 | . . . 4 . . 2 1 . . . . 4 5 4 2 1 . . . 1 . . . 1 . 2 3 1 3 Melee 1 | . 1 . . . . . 1 1 1 . . . 1 1 1 . . . . . . . . . 1 1 1 1 1 Uniques/NPCs Destroyed . | . . . . . . . . . . . . . . . . . . . . . . . . . . . . . . Combat | -11 -10 -10 -9 -9 -9 -8 -8 -8 -8 -8 -6 -6 -5 -5 -5 -5 -4 -4 -4 -4 -4 -4 -4 -4 -3 -3 -2 -2 -2 -------- Run | Yrd Mat Min Mat Min Exi Min Mat Sto Rec Scr Fac Gar Fac Gar Fac Gar Fac Was Fac Gar Fac Gar Fac Gar Res Tes Res Qua Frg Hostile Shots Fired 3064 | . 22 28 86 4 . 38 159 68 6 . 198 46 140 51 121 430 4 . 163 117 68 111 4 80 180 320 300 21 299 Missed 985 | . 11 4 31 . . 10 39 20 2 . 72 12 33 20 45 112 2 . 51 46 18 42 1 37 68 88 101 8 112 Deflected 51 | . . . . . . . . . . . . . . . . 48 . . 3 . . . . . . . . . . Hits 2079 | . 11 24 55 4 . 28 120 48 4 . 126 34 107 31 76 318 2 . 112 71 50 69 3 43 112 232 199 13 187 Melee 42 | . . . . . . 1 2 . . . 1 . . 2 7 . . . . 3 . . . 1 9 . 4 . 12 Projectile 2037 | . 11 24 55 4 . 27 118 48 4 . 125 34 107 29 69 318 2 . 112 68 50 69 3 42 103 232 195 13 175 AOE 13 | . . 6 . . . 1 . . . . . . . 1 . . . . . 1 . . 2 . 2 . . . . Critical Strikes 103 | . . . 2 . . 2 6 1 1 . 1 1 3 . 6 3 . . 8 3 1 1 1 . 7 17 19 . 20 Actively Blocked 24 | . . . . . . . . . . . . . . . . . . . . . . . . . . 13 4 . 7 Part Disruptions 8 | . . . . . . . . . . . . . . . . . . . . . . . . 1 1 4 . . 2 Damage Taken 38925 | . 179 463 733 56 . 395 1986 599 58 . 1783 614 2074 550 1544 3069 25 . 2040 1300 1143 1209 81 739 2768 3844 4772 283 6618 Core 4385 | . 23 122 88 . . 39 124 119 . . 105 80 353 69 288 278 . . 217 145 160 134 . 50 259 292 545 51 844 Absorbed by Shields 2418 | . . . . . . . . . . . . . . 74 . 869 10 . 192 160 . . . 100 . 854 140 . 19 Redirected to Shielding 52 | . . . . . . . . . . . 52 . . . . . . . . . . . . . . . . . . Ignored by Resistances 102 | . . . . . . . . . . . . . . . 13 . . . . . . . . . . . 89 . . Regen/Repaired (Parts) 8958 | . . . . . . . 100 238 . . 78 . 32 . 145 . . . 641 . 361 . 355 325 276 917 879 511 4100 Core Remaining (%) 54 | 100 . 42 . . . 68 . . . 55 . 78 . . . 1 . . . . . . . 38 . 57 . . . Volleys Fired 1480 | 5 48 14 68 7 . 18 46 69 . 1 81 38 34 34 36 53 8 3 171 88 103 100 16 70 77 53 21 2 216 Largest 3 | 2 2 2 2 2 . 2 2 2 . 1 3 3 3 1 1 2 1 2 2 2 2 2 2 2 2 2 1 1 2 Hottest 260 | 70 100 46 100 100 . 96 96 65 . 5 260 205 205 90 85 240 120 240 240 240 240 240 226 226 218 139 113 60 194 Shots Fired 2060 | 10 82 28 128 10 . 34 73 132 . 1 181 87 41 34 36 58 8 5 194 96 126 108 18 104 94 58 22 2 290 Gun 635 | 10 69 28 65 3 . 19 67 129 . . 149 54 7 . . . . . . . . . . . . 10 . . 25 Cannon 1031 | . . . 58 3 . 13 1 2 . . 30 24 19 17 15 43 7 4 167 67 87 71 8 75 60 35 12 . 213 Launcher 90 | . . . 4 . . 2 5 1 . . . 9 1 7 7 8 . . . 2 . . . . . 3 4 2 35 Special 304 | . 13 . 1 4 . . . . . 1 2 . 14 10 14 7 1 1 27 27 39 37 10 29 34 10 6 . 17 Kinetic 674 | 5 69 28 65 3 . 13 67 129 . . 44 26 2 . . . . . . . . . . . . . . . 223 Thermal 833 | 5 13 . 59 7 . 13 1 2 . . 135 52 24 15 15 28 7 4 129 40 85 30 8 75 60 25 1 . . Explosive 88 | . . . 4 . . 2 5 1 . . . 9 1 7 7 8 . . . . . . . . . 3 4 2 35 Electromagnetic 179 | . . . . . . 6 . . . . . . . 2 . 15 . . 38 29 2 41 . . . 20 11 . 15 Robot Hit Streak 33 | 4 8 11 33 14 . 19 10 7 . 7 14 12 10 8 8 11 1 4 17 14 12 11 3 13 10 7 8 6 13 Robot Miss Streak 6 | 1 4 3 4 . . 3 5 6 . . 4 5 1 1 2 3 . 1 4 2 3 5 2 4 2 4 2 . 5 Penetration Max 2 | . . . . . . . 1 1 . . . . . . . . . . . . . . . . . . . . 2 Secondary Targets 3 | . . . . . . . 1 2 . . . . . . . . . . . . . . . . . . . . . Max Gunslinging Chain 1 | . . . . . . . 1 1 . . . . . . . . . . . . . . . . . . . . . Shots Hit Robots 1580 | 7 54 20 92 6 . 21 102 80 5 1 130 47 49 33 21 35 1 4 85 54 63 58 8 59 54 116 69 32 274 Core Hits 724 | 3 15 8 40 3 . 13 50 34 2 . 46 39 16 21 16 25 . . 37 20 14 13 1 21 11 35 41 10 190 Critical Kills 10 | . 1 1 . . . . . . . . . 1 2 . 1 1 . . . . . . . . 2 1 . . . Critical Parts Destroyed 14 | . 2 . 1 . . . . . . . 2 . 6 3 . . . . . . . . . . . . . . . Critical Strikes 112 | . 3 1 1 . . . 7 2 . . 22 4 8 3 1 1 . . 1 . . . . . 2 10 10 3 33 Burn 23 | . . . . . . . . . . . 20 3 . . . . . . . . . . . . . . . . . Meltdown 5 | . . . . . . . . . . . . 1 . . . 1 . . . . . . . . 2 1 . . . Destroy 4 | . 1 1 1 . . . . . . . 1 . . . . . . . . . . . . . . . . . . Blast 21 | . . . . . . . . . . . . . . . . . . . . . . . . . . . . . 21 Corrupt 1 | . . . . . . . . . . . . . . . . . . . 1 . . . . . . . . . . Smash 15 | . 2 . . . . . . . . . 1 . 8 3 1 . . . . . . . . . . . . . . Sever 40 | . . . . . . . 7 2 . . . . . . . . . . . . . . . . . 7 9 3 12 Impale 3 | . . . . . . . . . . . . . . . . . . . . . . . . . . 2 1 . . Melee Attacks 829 | . 31 . 27 . . . 88 14 14 . 22 8 58 25 35 5 . . . . . . . . . 164 111 66 161 Impact 211 | . 31 . 27 . . . . . . . 22 8 58 25 35 5 . . . . . . . . . . . . . Slashing 547 | . . . . . . . 88 14 14 . . . . . . . . . . . . . . . . 142 87 49 153 Piercing 46 | . . . . . . . . . . . . . . . . . . . . . . . . . . 22 21 3 . Sneak Attacks 92 | . 2 . 2 . . . 9 . 3 . 2 . 3 8 1 . . . . . . . . . . 10 13 18 21 Combat Hostiles 30 | . . . . . . . . . . . . . 2 8 1 . . . . . . . . . . 4 8 2 5 Follow-up Attacks 46 | . . . . . . . . . . . . . . . . . . . . . . . . . . 18 12 3 13 Damage Inflicted 83132 | 80 846 268 2337 113 . 596 4009 1768 328 . 2894 2625 2345 2374 1254 2141 . 123 3753 1503 1636 1287 37 1903 1287 7012 5471 1915 33227 Guns 7252 | 80 494 268 633 50 . 175 699 1458 . . 2004 555 90 . . . . . . . . . . . . 266 . . 480 Cannons 28093 | . . . 1007 63 . 165 21 . . . 726 550 132 354 186 949 . 123 3165 1355 1593 1287 37 1848 1160 813 295 . 12264 Explosions 20501 | . . . 546 . . 235 656 . . . . 1520 532 1178 870 1174 . . 321 148 . . . . . 594 1719 360 10648 Melee 26724 | . 352 . 143 . . . 2633 310 328 . 164 . 1591 842 198 . . . . . . . . . . 5316 3457 1555 9835 Ramming 562 | . . . 8 . . 21 . . . . . . . . . 18 . . 267 . 43 . . 55 127 23 . . . Kinetic 16990 | 44 494 268 633 50 . 113 699 1458 . . 559 209 . . . . . . . . . . . . . . . . 12463 Thermal 14803 | 36 . . 1007 63 . 165 21 . . . 2171 896 411 326 186 736 . 123 2250 709 1593 368 37 1848 1160 639 . . 58 Explosive 19785 | . . . 546 . . 235 656 . . . . 1520 343 1178 870 1174 . . . . . . . . . 594 1719 360 10590 Electromagnetic 4268 | . . . . . . 62 . . . . . . . 28 . 213 . . 1236 794 . 919 . . . 440 295 . 281 Impact 3290 | . 352 . 143 . . . . . . . 164 . 1591 842 198 . . . . . . . . . . . . . . Slashing 22279 | . . . . . . . 2633 310 328 . . . . . . . . . . . . . . . . 4728 2890 1555 9835 Piercing 1155 | . . . . . . . . . . . . . . . . . . . . . . . . . . 588 567 . . Highest Corruption 58 | . 1 1 . . . . 2 . . 6 2 . . . 1 3 . . 8 8 11 14 14 17 2 58 10 10 17 Average Corruption 10 | . 1 1 . . . . 1 . . 4 1 . . . 1 1 . . 4 8 6 13 14 16 2 24 6 10 14 Corruption Purged 17 | . . . . . . . 2 . . . 2 . . . . 2 . . . . 5 . . . . . 6 . . Corruption Blocked . | . . . . . . . . . . . . . . . . . . . . . . . . . . . . . . Effects 772 | . 10 6 . . . . 1 . . . 8 . . . . 5 . . 63 45 63 59 18 61 11 100 32 37 253 Message Errors 175 | . 3 2 . . . . . . . . 1 . . . . 1 . . 15 8 14 10 2 16 4 21 8 14 56 Matter Fused 184 | . 3 1 . . . . . . . . 2 . . . . 2 . . 15 13 14 22 7 15 2 17 10 6 55 Heat Flow Errors 82 | . . . . . . . . . . . 2 . . . . . . . 7 5 5 3 2 8 2 8 2 5 33 Energy Discharges 89 | . 1 . . . . . 1 . . . 1 . . . . . . . 11 8 7 8 2 7 1 13 3 4 22 Parts Rejected 19 | . . . . . . . . . . . . . . . . . . . 2 . . . 1 . . 5 2 . 9 Parts Fused 7 | . . 1 . . . . . . . . 1 . . . . . . . 1 2 . 1 . . . . . 1 . Data Loss (minor) 93 | . 2 2 . . . . . . . . 1 . . . . 1 . . 2 3 17 4 1 7 . 20 6 4 23 Data Loss (major) 44 | . . . . . . . . . . . . . . . . 1 . . 6 2 2 4 1 5 1 8 . 1 13 Misfires 11 | . 1 . . . . . . . . . . . . . . . . . 2 3 1 1 . 2 . . 1 . . Alerts 12 | . . . . . . . . . . . . . . . . . . . . 1 2 . . 1 . 2 . . 6 Misdirections 36 | . . . . . . . . . . . . . . . . . . . . . . 2 2 . . 4 . 2 26 Weapon Failures 20 | . . . . . . . . . . . . . . . . . . . 2 . 1 4 . . 1 2 . . 10 Overload Shots . | . . . . . . . . . . . . . . . . . . . . . . . . . . . . . . Overflow Damage 7031 | . 49 . 52 . . 31 280 4 44 . 142 112 582 266 113 53 . 5 231 2 161 20 . 23 81 1003 243 291 3243 Projectiles 1543 | . . . . . . . . . . . . 28 . . . 3 . 5 76 . 161 20 . 23 53 53 13 . 1108 Explosions 1283 | . . . . . . 31 31 . . . . 84 131 62 96 50 . . 136 2 . . . . . 26 115 25 494 Melee 4205 | . 49 . 52 . . . 249 4 44 . 142 . 451 204 17 . . . 19 . . . . . 28 924 115 266 1641 Knockbacks 36 | . 1 . . . . . . . . . 2 . 4 1 . . . . . . . . . . . . . . 28 Impact 8 | . 1 . . . . . . . . . 2 . 4 1 . . . . . . . . . . . . . . . Kinetic 26 | . . . . . . . . . . . . . . . . . . . . . . . . . . . . . 26 Secondary 2 | . . . . . . . . . . . . . . . . . . . . . . . . . . . . . 2 Self-Inflicted Damage 892 | . . . 100 . . . 19 . . . . 39 . . 120 40 . . 95 39 . . . . . . 310 . 130 Shots 20 | . . . 4 . . . 1 . . . . 2 . . 3 1 . . 1 2 . . . . . . 4 . 2 Rammed 6 | . 2 . 1 . . 3 . . . . . . . . . . . . . . . . . . . . . . . Targets Rammed 33 | . 2 . 2 . . 3 . . . . . . . . . 2 . . 15 . 2 . . 1 5 1 . . . Kicked 26 | . . . . . . . . . . . . . . . . 2 . . 15 . 2 . . 1 5 1 . . . Crushed 1 | . . . 1 . . . . . . . . . . . . . . . . . . . . . . . . . . Highest Temperature 465 | 27 80 15 204 48 . 170 36 17 . . 465 336 264 72 78 186 . 72 362 288 336 174 192 384 344 270 465 235 251 Average Temperature 87 | 12 36 4 36 20 . 92 7 7 . . 122 118 63 26 28 53 . 42 89 79 93 53 73 99 93 114 118 90 93 Received Heat Transfer 5641 | . 72 158 267 33 . 192 756 216 36 . 504 81 465 45 216 1083 . . 96 148 33 87 27 56 282 69 482 . 237 Effects 19 | . . . . . . . . . . . 7 1 . . . . . . 3 . 4 . . 1 . . 1 2 . Shutdowns 3 | . . . . . . . . . . . 1 . . . . . . . . . 1 . . . . . 1 . . Energy Bleed 5 | . . . . . . . . . . . . 1 . . . . . . . . 3 . . 1 . . . . . Interference 10 | . . . . . . . . . . . 6 . . . . . . . 2 . . . . . . . . 2 . Damage (minor) 1 | . . . . . . . . . . . . . . . . . . . 1 . . . . . . . . . . Siege Activations . | . . . . . . . . . . . . . . . . . . . . . . . . . . . . . . Martial Activations . | . . . . . . . . . . . . . . . . . . . . . . . . . . . . . . Shielding Activations 4 | . . . . . . . . . . . . . . . . 2 . . 2 . . . . . . . . . . Total Turns 66 | . . . . . . . . . . . . . . . . 46 . . 20 . . . . . . . . . . Longest Duration 29 | . . . . . . . . . . . . . . . . 29 . . 11 . . . . . . . . . . Robots Disrupted 1 | . . . . . . . . . . . . . . . . . . . 1 . . . . . . . . . . Combat Hostiles 1 | . . . . . . . . . . . . . . . . . . . 1 . . . . . . . . . . Robots Corrupted 29 | . 1 . 2 . . . . . . . 2 . 2 3 . . . . 6 3 . 7 . . . 2 1 . . Combat Hostiles 23 | . 1 . . . . . . . . . . . 2 3 . . . . 5 3 . 7 . . . 1 1 . . Parts Fried 51 | . 2 . 5 . . 1 . . . . 4 . 2 2 . . . . 13 6 . 9 . . 1 4 . . 2 Impact Corruptions 32 | . 2 . 3 . . . . . . . 6 . 11 6 1 . . . 1 . . . . . 1 1 . . . Robots Melted 11 | . . . . . . . . . . . 4 1 . 1 . 1 . . . . . . . . 3 1 . . . Combat Hostiles 11 | . . . . . . . . . . . 4 1 . 1 . 1 . . . . . . . . 3 1 . . . Parts Melted 61 | . . . 3 . . . . . . . 25 7 2 2 1 1 . . 2 1 2 2 1 3 5 4 . . . Heat Transferred 20074 | 111 . . 1739 111 . 296 37 . . . 6946 2000 550 500 222 534 . 111 1556 573 1221 335 37 1628 962 555 . . 50 Parts Sabotaged 8 | . . . . . . . . . . . . . . 5 . . . . . . . . . 3 . . . . . Parts Stolen . | . . . . . . . . . . . . . . . . . . . . . . . . . . . . . . Parts Stripped . | . . . . . . . . . . . . . . . . . . . . . . . . . . . . . . Power Chain Reactions 1 | . . . . . . . . . . . . . . . . . . . . . . . . . . . . . 1 Alert | -11 -10 -10 -9 -9 -9 -8 -8 -8 -8 -8 -6 -6 -5 -5 -5 -5 -4 -4 -4 -4 -4 -4 -4 -4 -3 -3 -2 -2 -2 ------- Run | Yrd Mat Min Mat Min Exi Min Mat Sto Rec Scr Fac Gar Fac Gar Fac Gar Fac Was Fac Gar Fac Gar Fac Gar Res Tes Res Qua Frg Maximum Alert Level 5 | . . . 2 . . . 1 . . . 2 4 3 4 2 3 2 . 1 3 2 2 1 3 2 2 2 1 5 Low Security (%) 49 | 100 100 100 29 100 . 100 89 100 100 . 60 . . . . . . 100 86 12 29 7 13 18 60 70 43 84 5 Level 1 22 | . . . 36 . . . 10 . . . 32 23 62 18 24 . . . 13 16 60 49 86 26 32 15 49 15 20 Level 2 15 | . . . 34 . . . . . . . 6 26 31 21 75 63 100 . . 62 10 43 . 46 6 14 6 . 9 Level 3 3 | . . . . . . . . . . . . 26 5 44 . 36 . . . 8 . . . 9 . . . . 2 Level 4 2 | . . . . . . . . . . . . 23 . 15 . . . . . . . . . . . . . . 12 Level 5 6 | . . . . . . . . . . . . . . . . . . . . . . . . . . . . . 49 High Security . | . . . . . . . . . . . . . . . . . . . . . . . . . . . . . . Max Security . | . . . . . . . . . . . . . . . . . . . . . . . . . . . . . . Peak Influence 2723 | 5 96 40 533 196 . 105 262 180 65 . 505 1337 724 1114 644 957 501 148 281 778 443 686 359 782 439 525 575 232 2723 Initial 701 | . 3 10 . 196 . . . 69 35 . . 340 701 229 584 413 501 148 . 167 408 112 359 99 439 . 292 114 56 Average 391 | 1 10 2 288 41 . 17 98 58 8 . 174 793 432 736 482 679 463 83 77 454 276 390 279 417 166 190 211 106 1480 Influence Increases 21998 | 10 313 80 1143 53 . 210 907 688 115 . 1331 1047 634 955 1472 654 12 2 1046 841 1136 924 117 773 524 1157 1250 517 4087 Destroy 0b10 Robot/C 10300 | . 80 60 680 40 . 160 480 360 20 . 840 620 360 500 540 280 . . 480 340 420 400 20 340 260 520 500 120 1880 Destroy 0b10 Robot/NC 555 | 10 25 . 35 . . 5 65 20 5 . 30 . 5 . 20 . . . 40 5 30 . . . 10 25 40 20 165 Destroy Leader 1690 | . 28 20 160 10 . 30 150 112 . . 192 40 30 50 90 10 . . 122 20 80 20 10 20 60 82 110 32 212 Allied During Kill 1145 | . . . 26 . . . . . . . 110 52 1 62 139 4 . . 7 81 117 70 3 110 66 4 96 24 173 Successful Hack 957 | . 56 . 29 . . . 53 19 22 . 54 26 31 26 56 . . . 121 . 123 26 72 10 7 93 15 57 61 Select Force Hacks 180 | . 30 . . . . . 60 30 60 . . . . . . . . . . . . . . . . . . . . Disable Machine 1005 | . 15 . 45 . . . 30 30 . . 45 . 15 15 300 . . . 30 15 135 . . . . 90 30 105 105 Anti-Garrison Action 1150 | . . . . . . . . . . . . 150 . 150 . 50 . . . 200 . 350 . 250 . . . . . Destroy Structure 2361 | . 19 . 48 3 . 15 39 12 8 . 30 129 102 122 192 175 12 2 186 60 186 58 12 43 76 88 264 114 366 Partial Spotted 375 | . . . 30 . . . . 15 . . . . 15 30 15 . . . 15 . 30 . . . . . 60 15 150 Lose Combat Pursuer 2280 | . 60 . 90 . . . 30 90 . . 30 30 75 . 120 135 . . 45 120 15 . . . 45 255 135 30 975 Influence Decreases 19315 | 5 290 108 637 559 . 210 741 763 206 . 844 197 1643 169 1995 288 546 425 807 302 1753 399 661 133 1306 636 1567 621 1504 Entered New Map 4371 | . 2 18 . 310 . . . 97 56 . . 147 636 99 530 178 456 275 . 72 370 49 327 43 343 . 229 90 44 Time Decay 8237 | 5 278 80 577 249 . 210 501 531 150 . 484 . 482 . 490 . 90 130 444 . 658 . 214 . 459 516 538 381 770 Lost Part 990 | . 10 10 10 . . . 90 10 . . 20 20 130 10 60 90 . . 10 50 30 50 . 10 40 90 150 . 100 Lost Ally 2636 | . . . 50 . . . . 10 . . 40 30 120 60 190 20 . 20 76 180 320 300 120 80 350 30 200 . 440 Purge Threat 3081 | . . . . . . . 150 115 . . 300 . 275 . 725 . . . 277 . 375 . . . 114 . 450 150 150 Squads Dispatched 129 | . 1 . 3 1 . . 4 2 . . 9 . 9 . 16 . . . 15 . 14 . 3 . 11 9 15 4 13 Investigation 54 | . 1 . 2 1 . . 2 1 . . 4 . 2 . 9 . . . 7 . 8 . 1 . 3 1 4 . 8 Extermination 37 | . . . . . . . . . . . 4 . 2 . 1 . . . 6 . 4 . 1 . 2 6 5 4 2 Reinforcement 25 | . . . . . . . 2 . . . 1 . 1 . 5 . . . 2 . 2 . . . 4 2 3 . 3 Assault 3 | . . . 1 . . . . . . . . . 1 . 1 . . . . . . . . . . . . . . Garrison 10 | . . . . . . . . 1 . . . . 3 . . . . . . . . . 1 . 2 . 3 . . Intercept . | . . . . . . . . . . . . . . . . . . . . . . . . . . . . . . Searches Triggered . | . . . . . . . . . . . . . . . . . . . . . . . . . . . . . . Construction Impeded 5 | . . . . . . . . . . . . . . . 2 . . . 1 . . . . . 1 1 . . . Haulers Reinforced 2 | . . . . . . . . . . . . . . . 1 . . . . . 1 . . . . . . . . Active Scanning Responses . | . . . . . . . . . . . . . . . . . . . . . . . . . . . . . . Cargo Convoy Interrupts 1 | . . . . . . . . . . . . . . . . . . . . . . . . . 1 . . . . Alert ID Control Effect 69 | . . . . . . . . . . . . . . . . . . . . 2 11 4 2 7 12 . 4 9 18 Stealth | -11 -10 -10 -9 -9 -9 -8 -8 -8 -8 -8 -6 -6 -5 -5 -5 -5 -4 -4 -4 -4 -4 -4 -4 -4 -3 -3 -2 -2 -2 --------- Run | Yrd Mat Min Mat Min Exi Min Mat Sto Rec Scr Fac Gar Fac Gar Fac Gar Fac Was Fac Gar Fac Gar Fac Gar Res Tes Res Qua Frg Distress Signals 43 | . 2 . 6 . . . 4 4 . . 1 . . . . . . . 3 . 1 . 1 . 1 2 3 . 15 Communications Jammed 610 | . . . . . . . . . . . . . . . . . . . . . 17 359 2 . 169 . . . 63 Distress Signals 610 | . . . . . . . . . . . . . . . . . . . . . 17 359 2 . 169 . . . 63 Times Spotted 1265 | . 13 5 50 2 . 8 53 36 1 . 45 37 30 26 45 28 4 2 56 28 41 41 7 36 73 48 60 18 472 Peak Tracking Total 21 | . 3 2 6 2 . 4 7 4 1 . 5 10 8 7 12 6 4 2 5 8 4 7 2 4 21 7 10 4 18 Tactical Retreats 89 | . 3 . 3 . . . 2 4 . . 1 2 4 . 5 6 . . 2 4 1 . . . 3 9 6 1 33 Traps | -11 -10 -10 -9 -9 -9 -8 -8 -8 -8 -8 -6 -6 -5 -5 -5 -5 -4 -4 -4 -4 -4 -4 -4 -4 -3 -3 -2 -2 -2 ------- Run | Yrd Mat Min Mat Min Exi Min Mat Sto Rec Scr Fac Gar Fac Gar Fac Gar Fac Was Fac Gar Fac Gar Fac Gar Res Tes Res Qua Frg Traps Triggered 25 | . 1 . 2 . . . . . . . . 1 1 4 2 2 1 . . 1 1 1 1 1 . 1 2 . 3 Indirectly . | . . . . . . . . . . . . . . . . . . . . . . . . . . . . . . Trap Hack Attempts . | . . . . . . . . . . . . . . . . . . . . . . . . . . . . . . Triggered . | . . . . . . . . . . . . . . . . . . . . . . . . . . . . . . Disarmed 6 | . . . . . . . . . . . . . . . . . . . . . . . . . . 6 . . . Reprogrammed . | . . . . . . . . . . . . . . . . . . . . . . . . . . . . . . Reused . | . . . . . . . . . . . . . . . . . . . . . . . . . . . . . . Traps Extracted . | . . . . . . . . . . . . . . . . . . . . . . . . . . . . . . Installed . | . . . . . . . . . . . . . . . . . . . . . . . . . . . . . . Triggered . | . . . . . . . . . . . . . . . . . . . . . . . . . . . . . . Machines | -11 -10 -10 -9 -9 -9 -8 -8 -8 -8 -8 -6 -6 -5 -5 -5 -5 -4 -4 -4 -4 -4 -4 -4 -4 -3 -3 -2 -2 -2 ---------- Run | Yrd Mat Min Mat Min Exi Min Mat Sto Rec Scr Fac Gar Fac Gar Fac Gar Fac Was Fac Gar Fac Gar Fac Gar Res Tes Res Qua Frg Machines Disabled 90 | . 1 . 3 . . . 2 2 . . 3 2 1 4 20 2 . . 2 5 9 5 . 4 . 6 2 7 10 Max in Single Turn 4 | . 1 . 1 . . . 1 1 . . 1 1 1 1 1 1 . . 1 1 1 1 . 1 . 1 1 1 4 Garrison Access 9 | . . . . . . . 1 1 . . . . . . 1 . . . 1 . 1 . . . 2 . 1 1 . Garrison Relay 16 | . . . . . . . . . . . . 2 . 3 . 1 . . . 2 . 5 . 3 . . . . . Machines Repaired . | . . . . . . . . . . . . . . . . . . . . . . . . . . . . . . Machines Dismantled 1 | . . . . . . . . . . . . . . 1 . . . . . . . . . . . . . . . Machines Sabotaged . | . . . . . . . . . . . . . . . . . . . . . . . . . . . . . . Overloaded Fab Kills . | . . . . . . . . . . . . . . . . . . . . . . . . . . . . . . Hacking | -11 -10 -10 -9 -9 -9 -8 -8 -8 -8 -8 -6 -6 -5 -5 -5 -5 -4 -4 -4 -4 -4 -4 -4 -4 -3 -3 -2 -2 -2 --------- Run | Yrd Mat Min Mat Min Exi Min Mat Sto Rec Scr Fac Gar Fac Gar Fac Gar Fac Was Fac Gar Fac Gar Fac Gar Res Tes Res Qua Frg Machines Accessed 237 | . 10 1 13 1 1 . 16 12 12 1 23 2 11 4 21 . . . 24 3 23 1 5 2 7 11 10 10 13 Terminals 132 | . 8 1 12 . . . 10 9 6 . 13 2 4 4 7 . . . 10 3 8 1 2 2 2 8 5 7 8 Fabricators 16 | . . . . . . . . . . . 2 . 2 . 2 . . . 2 . 4 . . . . . . . 4 Repair Stations 19 | . . . . . . . 1 1 . . 1 . 1 . 3 . . . 3 . 2 . 2 . 1 2 1 1 . Recycling Units 38 | . 2 . . . . . 2 1 6 . 4 . 2 . 5 . . . 5 . 5 . . . 2 . 3 . 1 Scanalyzers 14 | . . . 1 . . . 2 . . . 2 . 1 . 2 . . . 2 . 2 . . . . 1 . 1 . Garrison Access 15 | . . . . . . . 1 1 . . 1 . 1 . 2 . . . 2 . 2 . 1 . 2 . 1 1 . Total Hacks 720 | . 40 2 35 1 1 . 61 37 33 6 68 4 24 8 58 . . . 85 7 79 4 11 3 21 37 26 27 42 Successful 429 | . 22 . 21 1 1 . 41 30 17 6 46 2 13 3 36 . . . 52 2 44 3 6 1 14 19 17 11 21 Failed 291 | . 18 2 14 . . . 20 7 16 . 22 2 11 5 22 . . . 33 5 35 1 5 2 7 18 9 16 21 Catastrophic 38 | . 1 . 3 . . . . 2 1 . 4 . 1 1 4 . . . 1 2 5 . 2 2 . 3 1 3 2 Database Lockouts . | . . . . . . . . . . . . . . . . . . . . . . . . . . . . . . Manual 356 | . 31 2 20 . . . 38 19 16 . 35 1 14 3 29 . . . 33 2 31 3 9 1 13 15 8 15 18 Terminals 453 | . 35 2 33 . . . 49 28 22 . 38 4 10 8 27 . . . 38 7 29 4 6 3 13 30 18 20 29 Fabricators 61 | . . . . . . . . . . . 9 . 7 . 6 . . . 9 . 18 . . . . . . . 12 Repair Stations 57 | . . . . . . . 2 6 . . 3 . 1 . 7 . . . 14 . 8 . 4 . 2 5 3 2 . Recycling Units 61 | . 5 . . . . . 2 2 11 . 5 . 3 . 5 . . . 6 . 15 . . . 3 . 3 . 1 Scanalyzers 61 | . . . 2 . . . 7 . . . 12 . 1 . 11 . . . 16 . 6 . . . . 2 . 4 . Garrison Access 19 | . . . . . . . 1 1 . . 1 . 2 . 2 . . . 2 . 3 . 1 . 3 . 2 1 . Terminal Hacks 145 | . 11 . 10 1 1 . 18 11 6 6 10 2 2 3 8 . . . 7 2 8 2 . 1 5 12 7 5 7 Record 1 | . . . . . 1 . . . . . . . . . . . . . . . . . . . . . . . . Part Schematic 8 | . 2 . . . . . 2 . 1 . 1 . . . . . . . . . . . . . . 2 . . . Robot Schematic 2 | . 1 . . . . . . . . . . . . . . . . . . . . . . . . . . 1 . Robot Analysis 11 | . 1 . . . . . 1 1 1 6 1 . . . . . . . . . . . . . . . . . . Prototype ID Bank 20 | . 3 . 4 . . . 3 3 3 . . . 1 . . . . . . . 1 . . . . 1 1 . . Open Door 6 | . . . . 1 . . . 2 . . . . . . . . . . . 1 . . . . . 1 1 . . Branch Access Points 2 | . . . 1 . . . . . . . . . . . . . . . . . . . . . . . 1 . . Emergency Access Points 4 | . . . . . . . . . . . 1 1 . 1 . . . . . . . 1 . . . . . . . Terminal Index 8 | . 1 . 1 . . . 1 . 1 . . . . . 1 . . . . . 1 . . . 1 1 . . . Repair Station Index 2 | . . . . . . . . . . . . . . . 1 . . . 1 . . . . . . . . . . Recycling Unit Index 1 | . . . . . . . 1 . . . . . . . . . . . . . . . . . . . . . . Scanalyzer Index 2 | . . . . . . . 1 . . . . . . . . . . . 1 . . . . . . . . . . Garrison Index 3 | . . . . . . . . . . . . . 1 . . . . . 1 . . . . . . . . 1 . Alert Level 4 | . . . 1 . . . 3 . . . . . . . . . . . . . . . . . . . . . . Unreport Threat 15 | . . . . . . . 1 1 . . 2 . . . 3 . . . 2 . . . . . 1 . 3 1 1 Locate Traps 15 | . 2 . 1 . . . 1 1 . . . . . . . . . . 1 . 2 . . . 1 3 1 1 1 Disarm Traps 1 | . . . . . . . . . . . . . . . . . . . . . . . . . . 1 . . . Maintenance Status 1 | . . . . . . . . . . . . . . . . . . . . . . . . . . . . . 1 Investigation Status 2 | . . . . . . . . . . . 1 . . . . . . . . . . . . . 1 . . . . Extermination Status 1 | . . . . . . . . . . . . . . . . . . . . . 1 . . . . . . . . Recall Investigation 1 | . . . . . . . . . . . 1 . . . . . . . . . . . . . . . . . . Recall Extermination 3 | . . . . . . . . . . . . . . . . . . . . . 2 . . . . . . 1 . Recall Reinforcements 1 | . . . . . . . . . . . . . . . . . . . . . . . . . . . . . 1 Hauler Manifests 1 | . . . . . . . 1 . . . . . . . . . . . . . . . . . . . . . . Registered Components 1 | . . . . . . . . . . . . . . . 1 . . . . . . . . . . . . . . Registered Prototypes 1 | . . . . . . . . . . . . . . . . . . . . . . . . . . 1 . . . Zone Layout 22 | . 1 . 2 . . . 3 3 . . 3 . . . 2 . . . 1 . 1 . . . 1 2 . . 3 Garrison Registry 5 | . . . . . . . . . . . . 1 . 1 . . . . . 1 . 1 . 1 . . . . . Patrol Navigation 1 | . . . . . . . . . . . . . . 1 . . . . . . . . . . . . . . . Fabricator Hacks 22 | . . . . . . . . . . . 4 . . . 3 . . . 4 . 5 . . . . . . . 6 Network Status 5 | . . . . . . . . . . . . . . . 1 . . . 2 . 2 . . . . . . . . Load Schematic 10 | . . . . . . . . . . . 2 . . . 1 . . . 1 . 2 . . . . . . . 4 Build 7 | . . . . . . . . . . . 2 . . . 1 . . . 1 . 1 . . . . . . . 2 Repair Station Hacks 24 | . . . . . . . 2 6 . . 2 . . . 4 . . . 5 . 2 . . . . 1 2 . . Scan Component 14 | . . . . . . . 1 3 . . 1 . . . 2 . . . 3 . 2 . . . . 1 1 . . Repair 10 | . . . . . . . 1 3 . . 1 . . . 2 . . . 2 . . . . . . . 1 . . Recycling Unit Hacks 11 | . . . . . . . . 1 4 . . . 1 . . . . . 1 . 4 . . . . . . . . Report Inventory 1 | . . . . . . . . 1 . . . . . . . . . . . . . . . . . . . . . Retrieve Components 10 | . . . . . . . . . 4 . . . 1 . . . . . 1 . 4 . . . . . . . . Scanalyzer 41 | . . . 2 . . . 5 . . . 11 . 1 . 5 . . . 13 . 3 . . . . . . 1 . Insert Component 23 | . . . 1 . . . 2 . . . 5 . 1 . 5 . . . 6 . 2 . . . . . . 1 . Analyze 18 | . . . 1 . . . 3 . . . 6 . . . . . . . 7 . 1 . . . . . . . . Garrison Access Hacks 19 | . . . . . . . 1 1 . . 1 . 2 . 2 . . . 2 . 3 . 1 . 3 . 2 1 . Unlock Access 6 | . . . . . . . . . . . 1 . 1 . 1 . . . 1 . 1 . 1 . . . . . . Seal Access 9 | . . . . . . . 1 1 . . . . . . 1 . . . 1 . 1 . . . 2 . 1 1 . Coupler Status 4 | . . . . . . . . . . . . . 1 . . . . . . . 1 . . . 1 . 1 . . Unauthorized Hacks 167 | . 11 . 9 . . . 15 11 7 . 18 . 7 . 14 . . . 20 . 19 1 5 . 6 6 6 4 8 Terminals 100 | . 9 . 9 . . . 13 10 5 . 12 . 1 . 4 . . . 11 . 4 1 3 . 3 5 2 2 6 Track 22 | . . . 1 . . . 2 2 . . 1 . . . 2 . . . 1 . 1 1 1 . . 3 1 2 4 Assimilate 15 | . 2 . 1 . . . 3 . . . 3 . . . 2 . . . 2 . . . . . 2 . . . . Botnet 17 | . 1 . 1 . . . 2 2 . . 2 . 1 . . . . . 1 . 2 . 1 . 1 1 1 . 1 Operators 11 | . 1 . 1 . . . 1 1 . . 1 . . . . . . . 2 . 1 . 1 . . 1 . . 1 Skim 35 | . 5 . 5 . . . 5 5 5 . 5 . . . . . . . 5 . . . . . . . . . . Fabricators 16 | . . . . . . . . . . . 2 . 3 . 2 . . . 1 . 7 . . . . . . . 1 Prioritize 4 | . . . . . . . . . . . . . 1 . . . . . . . 3 . . . . . . . . Liberate 4 | . . . . . . . . . . . 1 . 1 . . . . . . . 2 . . . . . . . . Haulers 5 | . . . . . . . . . . . 1 . 1 . 1 . . . 1 . 1 . . . . . . . . Recompile 3 | . . . . . . . . . . . . . . . 1 . . . . . 1 . . . . . . . 1 Repair Stations 14 | . . . . . . . . . . . . . 1 . 3 . . . 3 . 2 . 2 . 1 . 1 1 . Mechanics 6 | . . . . . . . . . . . . . 1 . 1 . . . 1 . 1 . 1 . . . . 1 . Patch 8 | . . . . . . . . . . . . . . . 2 . . . 2 . 1 . 1 . 1 . 1 . . Recycling Units 35 | . 2 . . . . . 2 1 2 . 4 . 2 . 5 . . . 5 . 6 . . . 2 . 3 . 1 Mask 2 | . 1 . . . . . . . . . . . . . . . . . . . 1 . . . . . . . . Tunnel 6 | . 1 . . . . . 2 1 2 . . . . . . . . . . . . . . . . . . . . Fedlink 24 | . . . . . . . . . . . 4 . 2 . 3 . . . 5 . 5 . . . 2 . 2 . 1 Scrapoids 3 | . . . . . . . . . . . . . . . 2 . . . . . . . . . . . 1 . . Scanalyzers 2 | . . . . . . . . . . . . . . . . . . . . . . . . . . 1 . 1 . Researchers 2 | . . . . . . . . . . . . . . . . . . . . . . . . . . 1 . 1 . Garrison Access . | . . . . . . . . . . . . . . . . . . . . . . . . . . . . . . Data Cores Recovered 2 | . . . . . . . . 1 . . . . . . 1 . . . . . . . . . . . . . . Used 1 | . . . . . . . . 1 . . . . . . . . . . . . . . . . . . . . . Hacking Detections 173 | . 9 1 13 . . . 11 7 9 . 17 2 9 4 11 . . . 18 2 16 1 4 1 4 8 6 9 11 Full Trace Events 7 | . . . . . . . . . . . . 1 . . . . . . . . 1 . . . . . . . 5 Feedback Events . | . . . . . . . . . . . . . . . . . . . . . . . . . . . . . . Feedback Blocked . | . . . . . . . . . . . . . . . . . . . . . . . . . . . . . . Robot Schematics Acquired 4 | . 1 . . . . . . . . . . . . . . . . . . . . . . . . 2 . 1 . Robots Built 1 | . . . . . . . . . . . . . . . . . . . . . 1 . . . . . . . . Authchips 1 | . . . . . . . . . . . . . . . . . . . . . 1 . . . . . . . . Time 40 | . . . . . . . . . . . . . . . . . . . . . 40 . . . . . . . . Total Robot Build Rating 1 | . . . . . . . . . . . . . . . . . . . . . 1 . . . . . . . . Part Schematics Acquired 127 | . 2 . 1 . . . 2 . 1 . 6 . . . . . . . 4 . 1 . . . . 10 . 100 . Parts Built 9 | . . . . . . . . . . . 4 . . . 2 . . . 1 . . . . . . . . . 2 Authchips 5 | . . . . . . . . . . . 2 . . . 1 . . . 1 . . . . . . . . . 1 Time 427 | . . . . . . . . . . . 94 . . . 95 . . . 102 . . . . . . . . . 136 Total Part Build Rating 54 | . . . . . . . . . . . 20 . . . 10 . . . 8 . . . . . . . . . 16 Parts Repaired 10 | . . . . . . . 1 3 . . 1 . . . 2 . . . 2 . . . . . . . 1 . . Time 344 | . . . . . . . 32 90 . . 16 . . . 123 . . . 59 . . . . . . . 24 . . Parts Recycled . | . . . . . . . . . . . . . . . . . . . . . . . . . . . . . . Recycled Matter . | . . . . . . . . . . . . . . . . . . . . . . . . . . . . . . Retrieved Matter . | . . . . . . . . . . . . . . . . . . . . . . . . . . . . . . Retrieved Components 25 | . . . . . . . . . 8 . . . 3 . . . . . 6 . 8 . . . . . . . . Parts Scanalyzed 13 | . . . 1 . . . 1 . . . 4 . . . 1 . . . 4 . 2 . . . . . . . . Part Schematics Acquired 11 | . . . 1 . . . . . . . 5 . . . . . . . 4 . 1 . . . . . . . . Parts Damaged 2 | . . . . . . . . . . . . . . . 1 . . . 1 . . . . . . . . . . Bothacking | -11 -10 -10 -9 -9 -9 -8 -8 -8 -8 -8 -6 -6 -5 -5 -5 -5 -4 -4 -4 -4 -4 -4 -4 -4 -3 -3 -2 -2 -2 ------------ Run | Yrd Mat Min Mat Min Exi Min Mat Sto Rec Scr Fac Gar Fac Gar Fac Gar Fac Was Fac Gar Fac Gar Fac Gar Res Tes Res Qua Frg Used RIF Installer 7 | . . . . . . . . . . . . 1 . 1 . 1 . . . 1 . 2 . 1 . . . . . Command Fork 2 | . . . . . . . . . . . . . . . . 1 . . . . . 1 . . . . . . . Watcher Feeds 1 | . . . . . . . . . . . . . . 1 . . . . . . . . . . . . . . . Patrol Navigation 1 | . . . . . . . . . . . . . . . . . . . . . . . . 1 . . . . . Alert ID Control 1 | . . . . . . . . . . . . . . . . . . . . 1 . . . . . . . . . Autoassimilate 1 | . . . . . . . . . . . . . . . . . . . . . . 1 . . . . . . . Robots Hacked 190 | . . . . . . . . . . 1 . . 10 4 6 3 . 1 13 14 23 17 5 15 27 6 8 5 32 Non-combat 46 | . . . . . . . . . . . . . 4 . 2 . . . 9 . 13 . 2 1 4 2 . 3 6 Combat 144 | . . . . . . . . . . 1 . . 6 4 4 3 . 1 4 14 10 17 3 14 23 4 8 2 26 Autoassimilated 32 | . . . . . . . . . . . . . . . . . . . . . . 2 1 1 5 . 2 . 21 Robot Hacks Applied 188 | . . . . . . . . . . 1 . . 13 4 8 4 . 1 16 14 30 16 5 15 22 7 7 14 11 parse_system 12 | . . . . . . . . . . 1 . . . . . . . . . 1 . . 1 . . 1 . 3 5 ignore_repairs 19 | . . . . . . . . . . . . . . . . . . . 6 . 9 . . . 2 . . 1 1 find_fabricator 3 | . . . . . . . . . . . . . 1 . 1 . . . . . . . 1 . . . . . . drop_inventory 6 | . . . . . . . . . . . . . 1 . . . . . . . 3 . . . . 1 . 1 . recall_reinforcements 1 | . . . . . . . . . . . . . . . . . . . . . 1 . . . . . . . . find_recycling 3 | . . . . . . . . . . . . . 1 . . . . . 1 . . . . . 1 . . . . purge_threat 7 | . . . . . . . . . . . . . 2 . 2 . . . . . 3 . . . . . . . . reprogram_traps 1 | . . . . . . . . . . . . . . . . . . . 1 . . . . . . . . . . block_reporting 1 | . . . . . . . . . . . . . . . . . . . . . 1 . . . . . . . . disable_scanner 1 | . . . . . . . . . . . . . . . . . . . . . . . . . . 1 . . . report_schematics 6 | . . . . . . . . . . . . . . . . . . . . . . . . . . . . 6 . report_analyses 3 | . . . . . . . . . . . . . . . . . . . . . . . . . . 1 . 2 . ignore_targets 1 | . . . . . . . . . . . . . . . . . . 1 . . . . . . . . . . . emergency_deploy 1 | . . . . . . . . . . . . . . . . . . . . . . 1 . . . . . . . find_garrison 1 | . . . . . . . . . . . . . . . 1 . . . . . . . . . . . . . . scatter_targeting 1 | . . . . . . . . . . . . . . . . 1 . . . . . . . . . . . . . spike_heat 5 | . . . . . . . . . . . . . . . . . . . . 1 . . 1 . 3 . . . . overload_power 1 | . . . . . . . . . . . . . . . 1 . . . . . . . . . . . . . . amplify_resonance 10 | . . . . . . . . . . . . . 2 . . . . . 1 1 1 2 . 1 2 . . . . wipe_record 5 | . . . . . . . . . . . . . . . . . . . 1 . 1 1 . . 1 . 1 . . reboot_system 16 | . . . . . . . . . . . . . . 3 . 1 . . . 1 3 2 . 3 1 . 1 . 1 go_dormant 1 | . . . . . . . . . . . . . . . . . . . . . . . . . . . . . 1 overwrite_iff 35 | . . . . . . . . . . . . . 4 . 1 1 . . 3 5 1 5 . 4 6 . 4 . 1 formatsys_low 13 | . . . . . . . . . . . . . 2 . . . . . 3 . 1 . 1 1 . 3 . . 2 formatsys_high 35 | . . . . . . . . . . . . . . 1 2 1 . . . 5 6 5 1 6 6 . 1 1 . Relay Couplers Released 79 | . . . . . . . . . . . 4 8 . 10 . 4 . . 4 7 2 20 . 15 2 . 2 1 . Machine Destruction 75 | . . . . . . . . . . . . 8 . 10 . 4 . . 4 7 2 20 . 15 2 . 2 1 . Programmers 4 | . . . . . . . . . . . 4 . . . . . . . . . . . . . . . . . . Attached 55 | . . . . . . . . . . . . 1 2 3 2 1 1 . 2 5 7 6 2 6 8 1 2 4 2 Fabnet Peak Effective % . | . . . . . . . . . . . . . . . . . . . . . . . . . . . . . . Robots Rewired 18 | . . . . . . . . . . . 1 . . 3 1 . 1 . 1 2 . 8 . 1 . . . . . Allies Hacked 7 | . . . . . . . . . . . . . . . . . . . . . 2 . . . 1 2 1 . 1 Hacks Repelled 3 | . . . . . . . . . . . . . . . . . . . . . . . . 1 . 1 . 1 . Allies | -11 -10 -10 -9 -9 -9 -8 -8 -8 -8 -8 -6 -6 -5 -5 -5 -5 -4 -4 -4 -4 -4 -4 -4 -4 -3 -3 -2 -2 -2 -------- Run | Yrd Mat Min Mat Min Exi Min Mat Sto Rec Scr Fac Gar Fac Gar Fac Gar Fac Was Fac Gar Fac Gar Fac Gar Res Tes Res Qua Frg Total Allies 193 | . 1 3 1 2 . . 1 . . 1 5 . 9 7 9 2 1 1 10 15 17 22 4 15 24 3 14 1 25 Largest Group 8 | . 1 3 3 2 2 . 1 1 . 1 3 2 3 4 6 1 1 1 3 6 5 8 5 8 7 1 5 1 3 Highest-Rated Group 439 | . 10 40 40 42 42 . 10 10 . 65 129 79 87 219 264 68 47 47 120 439 320 343 237 350 318 49 320 344 390 Highest-Rated Ally 344 | . 10 16 16 31 31 . 10 10 . 65 65 53 47 62 62 68 47 47 49 119 119 56 49 58 119 49 64 344 344 Total Orders 133 | . 1 . . . . . 5 5 . 1 10 7 1 . . . . . 7 7 3 5 2 17 8 3 . 5 46 STAY 67 | . 1 . . . . . 3 3 . 1 3 4 . . . . . . . 4 1 3 . 8 5 1 . 3 27 ROAM 3 | . . . . . . . . . . . . . . . . . . . . . . . 1 1 . . . . 1 FOLLOW 31 | . . . . . . . 2 2 . . 3 3 . . . . . . . 3 1 2 . 6 2 1 . 2 4 AID 24 | . . . . . . . . . . . . . 1 . . . . . 3 . 1 . 1 2 1 1 . . 14 EXPLORE 7 | . . . . . . . . . . . 4 . . . . . . . 3 . . . . . . . . . . RETURN 1 | . . . . . . . . . . . . . . . . . . . 1 . . . . . . . . . . Ally Attacks 1013 | . . . 46 . . . . . . . 108 39 26 33 122 5 . 5 11 59 93 85 20 49 124 6 65 20 97 Total Damage 31915 | . . . 489 . . . . . . . 2470 634 537 980 4052 418 . 153 230 1719 3542 2646 604 1411 4367 . 1706 1298 4659 Kills 176 | . . . 5 . . . . . . . 26 2 2 7 23 1 . . 3 9 24 10 3 9 17 . 8 9 18 Allies Corrupted 14 | . . . . . . . . . . . 2 . . . . . . . . 1 2 . . 1 1 2 2 . 3 Allies Melted 4 | . . . . . . . . . . . . . . . . . . . . 1 . . . . 1 . . . 2 Intel | -11 -10 -10 -9 -9 -9 -8 -8 -8 -8 -8 -6 -6 -5 -5 -5 -5 -4 -4 -4 -4 -4 -4 -4 -4 -3 -3 -2 -2 -2 ------- Run | Yrd Mat Min Mat Min Exi Min Mat Sto Rec Scr Fac Gar Fac Gar Fac Gar Fac Was Fac Gar Fac Gar Fac Gar Res Tes Res Qua Frg Active Infowar (turns) 30135 | 18 1371 1108 1388 998 260 1021 2062 2098 1107 719 69 . 918 . 457 . . . 1604 969 2469 1246 456 1351 715 1342 705 684 5000 Optics 4271 | . . . . . . . . . . . . . . . . . . . . . . . . . . . . . 4271 Sensors 9204 | . . . . . . . . . . . . . 754 . 457 . . . 1602 . 599 . . . 635 1342 705 534 2576 IFF 69 | . . . . . . . . . . . 69 . . . . . . . . . . . . . . . . . . Structural 4072 | . . . 746 983 258 186 1775 124 . . . . . . . . . . . . . . . . . . . . . Seismic 10923 | 18 1371 1108 1387 996 260 1019 874 2064 1107 719 . . . . . . . . . . . . . . . . . . . Machine Analysis 271 | . . . . . . . . . . . . . 271 . . . . . . . . . . . . . . . . Jamming 7328 | . . . . . . . . . . . . . . . . . . . 2 969 2469 1246 456 1351 283 . . 208 344 Robot Analysis Total 11 | . 1 . . . . . 1 1 1 6 1 . . . . . . . . . . . . . . . . . . Derelict Logs Recovered 3 | . . 1 . 2 . . . . . . . . . . . . . . . . . . . . . . . . . Drone Launches 7 | . . . . . . . . . . . 4 . . . . . . . 3 . . . . . . . . . . Drone Recoveries 3 | . . . . . . . . . . . 2 . . . . . . . 1 . . . . . . . . . . Exploration | -11 -10 -10 -9 -9 -9 -8 -8 -8 -8 -8 -6 -6 -5 -5 -5 -5 -4 -4 -4 -4 -4 -4 -4 -4 -3 -3 -2 -2 -2 ------------- Run | Yrd Mat Min Mat Min Exi Min Mat Sto Rec Scr Fac Gar Fac Gar Fac Gar Fac Was Fac Gar Fac Gar Fac Gar Res Tes Res Qua Frg Turns Passed 46149 | 74 1708 1108 2150 1057 261 1115 2569 2224 1107 3071 2676 1147 1255 1011 1290 509 193 270 2859 1309 2469 1246 456 1351 1332 2357 1532 927 5516 Spaces Moved 34620 | 46 911 597 1090 625 162 610 1302 972 585 1956 1497 601 1247 939 1707 273 139 202 1781 796 1623 773 344 855 878 1338 1583 1494 7694 Core 2 | 2 . . . . . . . . . . . . . . . . . . . . . . . . . . . . . Treads 7812 | . 711 597 782 625 162 610 1284 972 585 1483 . . . . . . . . . . . . . . . . 1 . . Legs 9209 | . . . . . . . . . . . . . . . . 201 139 202 1781 796 1623 773 344 855 878 1330 287 . . Wheels 3374 | 44 200 . 308 . . . 18 . . 473 1497 601 213 . . . . . . . . . . . . 8 12 . . Hover 14223 | . . . . . . . . . . . . . 1034 939 1707 72 . . . . . . . . . . 1283 1494 7694 Flight . | . . . . . . . . . . . . . . . . . . . . . . . . . . . . . . Fastest Speed 24 | 50 95 160 115 160 160 160 160 160 160 120 120 160 59 59 59 59 124 124 120 120 116 116 120 120 120 116 35 35 24 Average Speed 100 | 89 145 160 152 160 160 160 161 160 160 150 146 160 73 66 59 117 124 124 121 120 117 120 120 120 120 118 53 35 39 Slowest Speed 357 | 95 160 160 160 160 160 160 240 160 160 160 240 160 357 135 125 260 124 124 124 120 120 186 120 190 120 210 270 35 113 Overloaded Moves 321 | . . . . . . . . . . . . . . . . . . . . . . . . . . . . . 321 Propulsion Burnouts . | . . . . . . . . . . . . . . . . . . . . . . . . . . . . . . Robots Hopped 1 | . . . . . . . . . . . . . . . . . . . . . . . . . . . . . 1 Potential Cave-ins 17 | . . . . . . . . . . . . . . . . . . . . . . . . . . . . . 17 Cave-ins Triggered 1 | . . . . . . . 1 . . . . . . . . . . . . . . . . . . . . . . Teleports 1 | . . . . . . . . . . . . . . . . . . . . . . . . . . . . . 1 Exploration Rate (%) 62 | 4 96 101 95 99 55 92 66 82 91 90 53 56 26 79 42 36 2 86 53 58 55 71 20 62 26 95 39 90 63 Regions Visited 29 Branch Regions 10 Pre-discovered Areas 15 | . 1 . . . 1 . 3 2 3 . 3 . . . . . . . 2 . . . . . . . . . . Known Exits Taken 18 | . 1 1 1 . . 1 1 1 1 1 1 . 1 . 1 . . . 1 . 1 . 1 . 1 1 1 1 . Unknown Exits Taken 3 | 1 . . . 1 1 . . . . . . . . . . . . . . . . . . . . . . . . Scrap Searched 12 | . . 3 . 1 . 1 . . . 7 . . . . . . . . . . . . . . . . . . . Spaces Dug 623 | . 10 . 46 2 . 15 23 15 8 . 23 57 29 80 41 7 6 . 67 10 32 6 4 2 21 25 32 13 49 Terrain Destroyed 1232 | . 18 . 47 4 . 25 39 15 8 . 26 103 53 116 70 94 7 1 105 15 44 15 6 21 31 77 83 34 175 Melee 222 | . 5 . 19 . . . 11 2 8 . 20 8 19 10 29 4 . . . . . . . . . 25 31 13 18 Projectile 321 | . 13 . 1 4 . . . 2 . . 6 6 15 . 8 6 7 1 84 15 44 15 6 21 31 4 1 . 31 AOE 689 | . . . 27 . . 25 28 11 . . . 89 19 106 33 84 . . 21 . . . . . . 48 51 21 126 Terrain Rammed . | . . . . . . . . . . . . . . . . . . . . . . . . . . . . . . Walls Destroyed . | . . . . . . . . . . . . . . . . . . . . . . . . . . . . . . Machines Disabled . | . . . . . . . . . . . . . . . . . . . . . . . . . . . . . . Actions | -11 -10 -10 -9 -9 -9 -8 -8 -8 -8 -8 -6 -6 -5 -5 -5 -5 -4 -4 -4 -4 -4 -4 -4 -4 -3 -3 -2 -2 -2 --------- Run | Yrd Mat Min Mat Min Exi Min Mat Sto Rec Scr Fac Gar Fac Gar Fac Gar Fac Was Fac Gar Fac Gar Fac Gar Res Tes Res Qua Frg Total 42951 | 65 1120 723 1396 665 163 709 1575 1508 738 2090 1790 696 1432 1236 1885 402 152 218 2288 1078 2090 1008 374 1094 1088 1841 2094 1820 9613 Wait 3752 | 1 91 91 99 8 . 62 37 389 133 93 86 11 32 136 50 19 3 . 223 108 258 64 2 112 71 146 227 215 985 Move 34595 | 45 910 596 1089 624 161 609 1301 971 584 1955 1496 600 1247 938 1707 272 139 201 1781 795 1623 772 344 854 877 1337 1582 1493 7692 Hop 1 | . . . . . . . . . . . . . . . . . . . . . . . . . . . . . 1 Pick Up 452 | 7 7 8 18 7 . 1 23 11 3 13 25 5 17 13 15 12 1 7 19 24 33 19 2 12 11 33 20 7 79 Fast Attach 162 | 7 2 . 3 . . . 4 1 . 4 2 . 3 6 5 8 . 1 7 6 6 10 2 7 2 17 26 12 21 Attach 245 | . . 1 2 . . . 12 4 1 . 14 2 17 4 7 11 1 . 4 8 13 10 . 8 8 8 15 3 92 Detach 103 | . . . . . . . 3 1 1 1 4 . 1 2 1 6 . . 1 1 . 4 . 2 . 2 7 4 62 Swap 763 | . 22 7 60 10 2 14 35 36 . 6 41 19 15 21 16 5 . 2 47 26 22 9 5 15 25 67 63 15 158 Drop 454 | . 7 6 28 9 . 2 26 12 2 17 19 5 7 13 11 9 . 4 18 18 26 14 3 9 11 43 39 14 82 Fire 1480 | 5 48 14 68 7 . 18 46 69 . 1 81 38 34 34 36 53 8 3 171 88 103 100 16 70 77 53 21 2 216 Melee 737 | . 31 . 27 . . . 88 14 14 . 22 8 58 25 35 5 . . . . . . . . . 132 90 54 134 Ram . | . . . . . . . . . . . . . . . . . . . . . . . . . . . . . . Kick 26 | . . . . . . . . . . . . . . . . 2 . . 15 . 2 . . 1 5 1 . . . Crush 7 | . 2 . 2 . . 3 . . . . . . . . . . . . . . . . . . . . . . . Escape Stasis 68 | . . . . . . . . . . . . 8 . 36 . . . . . . . 3 . 2 . . 3 . 16 Rewire 29 | . . . . . . . . . . . . . 1 . 2 . . . 2 4 4 3 . 2 1 2 1 1 6 Trap . | . . . . . . . . . . . . . . . . . . . . . . . . . . . . . . Miscellaneous 77 | . . . . . . . . . . . . . . 8 . . . . . . . . . . . . . . 69 Route ------- -11/Scrapyard -10/Materials (discovered 6 exits: *Mat x3 / *Min x2 / Sub) -10/Mines (discovered 2 exits: *Mat x2) -9/Materials (discovered 4 exits: *Mat x3 / *Min) -9/Mines (discovered 4 exits: *Mat x2 / *Exi / [*Zio]) -9/Exiles (discovered 2 exits: [*Min x2]) -8/Mines (discovered 2 exits: *Mat x2) -8/Materials (discovered 4 exits: *Fac x3 / *Sto) -8/Storage (discovered 2 exits: *Fac / *Rec) -8/Recycling (discovered 2 exits: *Fac / *Scr) -8/Scraptown (discovered 2 exits: *Fac x2) -6/Factory (discovered 7 exits: *Fac x4 / *Low x2 / Gar) -6/Garrison (discovered 3 exits: *Fac x3) -5/Factory (discovered 9 exits: *Fac x4 / Upp x2 / Ext x2 / Gar) -5/Garrison (discovered 4 exits: *Fac x3 / *Fac) -5/Factory (discovered 4 exits: *Fac / *Upp x2 / Gar) -5/Garrison -4/Factory -4/Waste -4/Factory (discovered 6 exits: *Res x3 / *Upp x2 / Gar) -4/Garrison (discovered 3 exits: *Fac x3) -4/Factory (discovered 6 exits: *Res x2 / *Upp x2 / [*Arm] / Gar) -4/Garrison (discovered 4 exits: Res x3 / *Fac) -4/Factory (discovered 2 exits: *Upp / Gar) -4/Garrison (discovered 3 exits: *Res x3) -3/Research -3/Testing -2/Research (discovered 3 exits: *Acc / *Qua x2) -2/Quarantine (discovered 3 exits: *Acc / *Sec / *Frg) -2/Protoforge (discovered 1 exit: *Acc) History --------- Turn | Location | Event 21 | -11/Scrapyard | Discovered new exit (range 15) 75 | -11/Scrapyard | Entered Materials 313 | -10/Materials | Build established: Mutant 675 | -10/Materials | Derelicts attacked the area 932 | -10/Materials | Discovered new exit (range 9) 1076 | -10/Materials | Discovered new exit (range 5) 1123 | -10/Materials | Identified exit to Mines 1123 | -10/Materials | Identified exit to Materials 1154 | -10/Materials | Learned 4 Subcaves zone layouts 1184 | -10/Materials | Learned Storage emergency access door positions 1185 | -10/Materials | Identified exit to Subcaves 1185 | -10/Materials | Learned location of 1 exit from Materials 1193 | -10/Materials | Learned location of 2 exits from Subcaves 1213 | -10/Materials | Learned Storage stockpile data 1783 | -10/Materials | Entered Mines 1783 | -10/Mines | Accompanied by 1 ally 2011 | -10/Mines | Assembled infested the area 2186 | -10/Mines | Joined a pair of Derelicts in attacking an 0b10 outpost 2228 | -10/Mines | Discovered exit to Materials (range 5) 2417 | -10/Mines | Core integrity fell below 50% 2627 | -10/Mines | Assisted by bots powering up and referring to "LRC-V3" 2662 | -10/Mines | Received a Rocket Launcher from a helpful Derelict 2733 | -10/Mines | Learned Materials emergency access door positions 2875 | -10/Mines | Discovered exit to Materials (range 6) 2891 | -10/Mines | Entered Materials 2891 | -9/Materials | Accompanied by 3 allies 2891 | -9/Materials | Evolved 2 slots: Propulsion x1, Utility x1 2892 | -9/Materials | Identified exit to Materials 3582 | -9/Materials | Build established: Scavenger-Mutant 3963 | -9/Materials | Discovered new exit (range 13) 4354 | -9/Materials | Learned location of 2 exits from Materials 4477 | -9/Materials | Learned location of 1 exit from Recycling 4479 | -9/Materials | Identified exit to Mines 4524 | -9/Materials | Learned Storage terminal intel 4559 | -9/Materials | Learned location of 3 exits from Materials 4603 | -9/Materials | Learned Materials emergency access door positions 4649 | -9/Materials | Build established: Mutant 4655 | -9/Materials | Loaded intel: 9 trap records 4891 | -9/Materials | First assault squad dispatched 5041 | -9/Materials | Entered Mines 5069 | -9/Mines | Found DCF Scrap (15 items) 5135 | -9/Mines | Found a damaged Exp. Sensor Array with a note attached 5140 | -9/Mines | Found Prototype Device 5198 | -9/Mines | A Derelict revealed a hidden shortcut to a safe place 5379 | -9/Mines | A weapon hastily lodged in a ceiling crevice suddenly fell to the ground 5402 | -9/Mines | Discovered exit to Materials (range 5) 5437 | -9/Mines | Deemed a non-threat by the Exiles lab entrance 5437 | -9/Mines | Discovered new exit (range 6) 5525 | -9/Mines | Learned 8 Materials zone layouts 5540 | -9/Mines | Met a Derelict shopkeep closing up shop 5592 | -9/Mines | Discovered exit to Materials (range 11) 5755 | -9/Mines | Learned Materials emergency access door positions 6098 | -9/Mines | Entered Exiles 6098 | -9/Exiles | Accompanied by 2 allies 6124 | -9/Exiles | Discovered new exit (range 15) 6128 | -9/Exiles | Led the pair of lost Derelicts to a safe place 6140 | -9/Exiles | Met 8R-AWN 6167 | -9/Exiles | Met EX-HEX 6234 | -9/Exiles | Met EX-BIN 6265 | -9/Exiles | Met EX-DEC 6273 | -9/Exiles | Learned location of Zion (-7) 6343 | -9/Exiles | Discovered new exit (range 10) 6359 | -9/Exiles | Entered Mines 6417 | -8/Mines | Discovered exit to Materials (range 9) 6465 | -8/Mines | Discovered exit to Materials (range 4) 7474 | -8/Mines | Entered Materials 7474 | -8/Materials | Evolved 2 slots: Utility x2 7475 | -8/Materials | Identified exit to Storage 7476 | -8/Materials | Identified exit to Factory 7989 | -8/Materials | Build established: Scavenger-Mutant 8790 | -8/Materials | Learned Storage trap positions 8870 | -8/Materials | Learned Storage emergency access door positions 8939 | -8/Materials | Learned Storage trap positions 8959 | -8/Materials | Crushed by falling debris 8990 | -8/Materials | Lost 3 parts (3u) 9041 | -8/Materials | Learned Storage stockpile data 9075 | -8/Materials | Learned Storage security intel 9100 | -8/Materials | Learned location of 1 exit from Extension 9133 | -8/Materials | Learned Factory garrison access intel 9178 | -8/Materials | Learned Storage emergency access door positions 9234 | -8/Materials | Learned location of Extension (-5) 9606 | -8/Materials | Repaired Imp. Treads 9902 | -8/Materials | Identified Exp. Sensor Array 10043 | -8/Materials | Entered Storage 10043 | -8/Storage | Accompanied by 1 ally 10044 | -8/Storage | Identified exit to Recycling 10045 | -8/Storage | Loaded intel: 23 trap records 10049 | -8/Storage | Loaded intel: 14 terminal locations 10658 | -8/Storage | Build established: Mutant 11125 | -8/Storage | Garrison activated, responded to threat 11542 | -8/Storage | Repaired Imp. Treads 11575 | -8/Storage | Repaired Imp. Treads 11577 | -8/Storage | Learned Storage emergency access door positions 11602 | -8/Storage | Repaired Lgt. Armor Plating 11604 | -8/Storage | Learned Storage emergency access door positions 11630 | -8/Storage | Learned location of 1 exit from Recycling 11632 | -8/Storage | Learned Factory trap positions 11635 | -8/Storage | Learned 4 Factory zone layouts 12221 | -8/Storage | Used back door to open Recycling access 12267 | -8/Storage | Entered Recycling 12268 | -8/Recycling | Identified exit to Factory 12268 | -8/Recycling | Identified exit to Scraptown 13116 | -8/Recycling | Learned Factory emergency access door positions 13203 | -8/Recycling | Scanned before Scraplab entrance 13225 | -8/Recycling | Entered Scraplab 13254 | -8/Recycling | Learned Factory terminal intel 13282 | -8/Recycling | Learned location of 2 exits from Factory 13372 | -8/Recycling | Learned location of 3 exits from Factory 13374 | -8/Recycling | Entered Scraptown 13675 | -8/Scraptown | Discovered exit to Factory (range 7) 13782 | -8/Scraptown | Visited Junk Repository 13861 | -8/Scraptown | Visited Red Mages 13924 | -8/Scraptown | Visited Comm Corps 13988 | -8/Scraptown | Visited Science Testing Area 14012 | -8/Scraptown | Heard Great Nut preacher, LISTEN AND RECITE! 14023 | -8/Scraptown | Visited Awakened 14289 | -8/Scraptown | Visited SPCMW 14324 | -8/Scraptown | Visited UFD Registry 14324 | -8/Scraptown | Registered with UFD as "Shocknade" 14358 | -8/Scraptown | Visited LU-1G1's Boring Crew 14422 | -8/Scraptown | Visited Curators Association 14473 | -8/Scraptown | Visited Supply Room 14552 | -8/Scraptown | Visited Botcube Research 14598 | -8/Scraptown | Visited DA-N13 Charitable Foundation 14604 | -8/Scraptown | Found DCF Scrap (30 items) 14635 | -8/Scraptown | Visited Supply Room 14660 | -8/Scraptown | Visited Derelict Rescue Squad 14686 | -8/Scraptown | Visited Scrapoid Research Area 14721 | -8/Scraptown | Visited Analyses Database 14838 | -8/Scraptown | Visited Scrap Suit Storage 15240 | -8/Scraptown | Found Botcube 15350 | -8/Scraptown | Found Scrap Suit 15562 | -8/Scraptown | Botcube activated 15582 | -8/Scraptown | Botcube completed mutation into treaded form, armed with 2 guns. 15756 | -8/Scraptown | Discovered exit to Factory (range 3) 15765 | -8/Scraptown | System corruption cleaned by C-Scrubber 16380 | -8/Scraptown | Met Optimus 16380 | -8/Scraptown | Accepted into 0bPrime 16445 | -8/Scraptown | Entered Factory 16445 | -6/Factory | Accompanied by 1 ally 16445 | -6/Factory | Evolved 4 slots: Propulsion x1, Utility x2, Weapon x1 16446 | -6/Factory | Identified exit to Lower Caves 16447 | -6/Factory | Identified exit to Factory 16449 | -6/Factory | Loaded intel: 89 trap records 16451 | -6/Factory | Loaded intel: 26 terminal locations 16452 | -6/Factory | Loaded intel: 3 garrison access locations 16749 | -6/Factory | Fabricated Cmb. Airjet? 16877 | -6/Factory | Fabricated Cmb. Airjet? 17533 | -6/Factory | Learned location of Upper Caves (-5) 17590 | -6/Factory | Loaded intel: 8 recycling unit locations 17662 | -6/Factory | Learned 2 Upper Caves zone layouts 17739 | -6/Factory | Learned location of Protoforge (-2) 18350 | -6/Factory | Spotted B-75 Beast 18365 | -6/Factory | Destroyed B-75 Beast 18623 | -6/Factory | Repaired Arm. Wheel 19113 | -6/Factory | Identified exit to Garrison 19121 | -6/Factory | Entered Garrison 19121 | -6/Garrison | Accompanied by 2 allies 19265 | -6/Garrison | Triggered checkpoint 19375 | -6/Garrison | Triggered checkpoint 19410 | -6/Garrison | Triggered checkpoint 19453 | -6/Garrison | Triggered checkpoint 19537 | -6/Garrison | Triggered checkpoint 19679 | -6/Garrison | Build established: Gunner 19697 | -6/Garrison | Discovered exit to Factory (range 53) 19697 | -6/Garrison | Discovered exit to Factory (range 10) 19697 | -6/Garrison | Discovered exit to Factory (range 66) 19697 | -6/Garrison | Garrison Relay disabled 19864 | -6/Garrison | Installed Relay Interface Framework 19915 | -6/Garrison | Destroyed 7 combat bots 20093 | -6/Garrison | Found Botcube 20171 | -6/Garrison | Garrison Relay disabled 20268 | -6/Garrison | Entered Factory 20268 | -5/Factory | Evolved 2 slots: Propulsion x2 20269 | -5/Factory | Identified exit to Factory 20269 | -5/Factory | Identified exit to Upper Caves 20269 | -5/Factory | Identified exit to Extension 20568 | -5/Factory | First assault squad dispatched 20746 | -5/Factory | Lost 12 parts (2p6n2u2w) 20884 | -5/Factory | Garrison activated, responded to threat 21006 | -5/Factory | Discovered exit to Factory (range 13) 21066 | -5/Factory | Loaded intel: 8 recycling unit locations 21487 | -5/Factory | Build established: Mutant 21523 | -5/Factory | Identified exit to Garrison 21523 | -5/Factory | Entered Garrison 21541 | -5/Garrison | Expanded RIF knowledge: Watcher Feeds 21619 | -5/Garrison | Triggered checkpoint 21652 | -5/Garrison | Discovered new exit (range 6) 21678 | -5/Garrison | Triggered checkpoint 21714 | -5/Garrison | Garrison Relay disabled 21780 | -5/Garrison | Spotted B-75 Beast 21785 | -5/Garrison | Triggered checkpoint 21837 | -5/Garrison | Triggered checkpoint 21941 | -5/Garrison | Allies destroyed B-75 Beast 21945 | -5/Garrison | Build established: Machinist-Mutant 22054 | -5/Garrison | Garrison Relay disabled 22063 | -5/Garrison | Triggered checkpoint 22086 | -5/Garrison | Discovered exit to Factory (range 68) 22086 | -5/Garrison | Discovered exit to Factory (range 36) 22086 | -5/Garrison | Discovered exit to Factory (range 38) 22086 | -5/Garrison | Discovered new exit (range 57) 22119 | -5/Garrison | Triggered checkpoint 22207 | -5/Garrison | Found embedded Infiltrators 22321 | -5/Garrison | Triggered checkpoint 22356 | -5/Garrison | Rescued a captive Derelict 22382 | -5/Garrison | Garrison Relay disabled 22496 | -5/Garrison | Identified exit to Factory 22534 | -5/Garrison | Entered Factory 22534 | -5/Factory | Accompanied by 4 allies 22709 | -5/Factory | Discovered exit to Upper Caves (range 34) 22792 | -5/Factory | Loaded intel: 7 recycling unit locations 23002 | -5/Factory | Lost 3 allies 23134 | -5/Factory | First assault squad dispatched 23207 | -5/Factory | Scrapoids reinforcements arrived? 23256 | -5/Factory | Found Prototype Launcher 23316 | -5/Factory | Lost 3 allies 23365 | -5/Factory | Identified Mni. Smartbomb Launcher 23443 | -5/Factory | Fabricated Cmb. Airjet (x2) 23454 | -5/Factory | Core integrity fell below 50% 23501 | -5/Factory | Discovered exit to Factory (range 8) 23597 | -5/Factory | Discovered exit to Upper Caves (range 2) 23608 | -5/Factory | Build established: Hacker-Mutant 23646 | -5/Factory | Repaired Mic. Fission Core? 23794 | -5/Factory | Repaired Broken Adv. Force Field? 23824 | -5/Factory | Identified exit to Garrison 23824 | -5/Factory | Entered Garrison 23836 | -5/Garrison | Lost 3 parts (1n1u1w) 23858 | -5/Garrison | Garrison Relay disabled 23925 | -5/Garrison | Core integrity fell below 20% 23981 | -5/Garrison | Lost 5 parts (1p2n2w) 24106 | -5/Garrison | Heavy support dispatched to Factory 24107 | -5/Garrison | Triggered checkpoint 24108 | -5/Garrison | Triggered checkpoint 24230 | -5/Garrison | Discovered exit to Factory (range 10) 24305 | -5/Garrison | Expanded RIF knowledge: Command Fork 24333 | -5/Garrison | Entered Factory 24333 | -4/Factory | Evolved 2 slots: Power x1, Utility x1 24525 | -4/Factory | Build established: Hacker-Gunner 24526 | -4/Factory | Manually triggered Chute Trap 24526 | -4/Factory | Sucked down chute 24526 | -4/Factory | Entered Waste 24526 | -4/Waste | The area was eerily silent 24526 | -4/Waste | Met up with 1 ally sucked down the chute earlier 24692 | -4/Waste | Found Prototype Device 24702 | -4/Waste | Discovered new exit (range 16) 24766 | -4/Waste | A Compactor rumbled back to life 24766 | -4/Waste | A Compactor rumbled back to life 24766 | -4/Waste | Spotted C-40 Crusher 24766 | -4/Waste | Spotted C-40 Crusher 24795 | -4/Waste | Identified exit to Factory 24796 | -4/Waste | Entered Factory 24925 | -4/Factory | Fabricated Exp. Sensor Array? 25042 | -4/Factory | Discovered new exit (range 16) 25095 | -4/Factory | Found Prototype Hackware 25095 | -4/Factory | Identified Exp. Hacking Suite 25292 | -4/Factory | Discovered new exit (range 21) 25322 | -4/Factory | Identified exit to Research 25367 | -4/Factory | Identified Exp. Transmission Jammer 25558 | -4/Factory | Build established: Bothacker-Gunner 25681 | -4/Factory | Loaded intel: 8 recycling unit locations 25947 | -4/Factory | Spotted B-86 Titan 26207 | -4/Factory | Learned location of 1 exit from Proximity Caves 26230 | -4/Factory | Repaired Antimatter Reactor? 26278 | -4/Factory | Identified exit to Upper Caves 26300 | -4/Factory | Learned 4 Research zone layouts 26633 | -4/Factory | Found Quantum Capacitor 26691 | -4/Factory | Build established: Hacker-Tank 26841 | -4/Factory | Repaired Broken HERF Cannon? 26880 | -4/Factory | Discovered exit to Research (range 9) 27102 | -4/Factory | P-70 Sage assimilated allied Artificer 7a 27655 | -4/Factory | Identified exit to Garrison 27655 | -4/Factory | Entered Garrison 27710 | -4/Garrison | Discovered new exit (range 57) 27710 | -4/Garrison | Discovered new exit (range 93) 27710 | -4/Garrison | Discovered new exit (range 65) 27729 | -4/Garrison | Triggered checkpoint 27816 | -4/Garrison | Garrison Relay disabled 27876 | -4/Garrison | Rescued a captive Derelict 27878 | -4/Garrison | Rescued a captive Derelict 27927 | -4/Garrison | Triggered checkpoint 27943 | -4/Garrison | Spotted B-86 Titan 27949 | -4/Garrison | Triggered checkpoint 27953 | -4/Garrison | Triggered checkpoint 27959 | -4/Garrison | Triggered checkpoint 27991 | -4/Garrison | Lost 5 allies 28000 | -4/Garrison | Destroyed B-86 Titan 28162 | -4/Garrison | Expanded RIF knowledge: Alert ID Control 28401 | -4/Garrison | Triggered checkpoint 28485 | -4/Garrison | Garrison Relay disabled 28516 | -4/Garrison | Build established: Bothacker-Tank 28526 | -4/Garrison | Rewired Executioner 28530 | -4/Garrison | Rewired Executioner 28815 | -4/Garrison | Found Relay Coupler [Proto] 28817 | -4/Garrison | Found Relay Coupler [Proto] 28819 | -4/Garrison | Found Relay Coupler [Proto] 28822 | -4/Garrison | Found Relay Coupler [Proto] 28931 | -4/Garrison | Identified exit to Factory 28964 | -4/Garrison | Entered Factory 28964 | -4/Factory | Accompanied by 5 allies 29524 | -4/Factory | Build established: Botlord-Skirmisher 29545 | -4/Factory | Loaded intel: 8 recycling unit locations 29593 | -4/Factory | Discovered exit to Research (range 37) 29666 | -4/Factory | Discovered exit to Research (range 40) 29807 | -4/Factory | Lost 4 allies 29998 | -4/Factory | Lost 3 allies 30038 | -4/Factory | Found Exp. Signal Interpreter 30042 | -4/Factory | Found Exp. Signal Interpreter 30082 | -4/Factory | Build established: Botlord-Gunner 30091 | -4/Factory | Fabricated M-13 Machinist? 30163 | -4/Factory | Discovered new exit (range 25) 30181 | -4/Factory | Discovered exit to Upper Caves (range 14) 30387 | -4/Factory | Botcube activated 30575 | -4/Factory | Spotted B-86 Titan 30790 | -4/Factory | P-70 Sage assimilated allied Sentinel 7d 30798 | -4/Factory | System corruption reached 10% 31210 | -4/Factory | Build established: Bothacker-Gunner 31433 | -4/Factory | Identified exit to Garrison 31433 | -4/Factory | Entered Garrison 31469 | -4/Garrison | Core integrity fell below 50% 31517 | -4/Garrison | Expanded RIF knowledge: Autoassimilate 31659 | -4/Garrison | Triggered checkpoint 31757 | -4/Garrison | Garrison Relay disabled 31966 | -4/Garrison | Triggered checkpoint 31969 | -4/Garrison | Triggered checkpoint 31969 | -4/Garrison | Spotted B-86 Titan 31995 | -4/Garrison | Allies destroyed B-86 Titan 31997 | -4/Garrison | Triggered checkpoint 32060 | -4/Garrison | Lost 9 allies 32125 | -4/Garrison | Triggered checkpoint 32151 | -4/Garrison | Discovered exit to Research (range 65) 32151 | -4/Garrison | Discovered exit to Research (range 47) 32151 | -4/Garrison | Discovered exit to Research (range 44) 32151 | -4/Garrison | Discovered new exit (range 62) 32213 | -4/Garrison | Expanded RIF knowledge: Command Fork 32247 | -4/Garrison | Triggered checkpoint 32254 | -4/Garrison | Garrison Relay disabled 32289 | -4/Garrison | Garrison Relay disabled 32310 | -4/Garrison | Garrison Relay disabled 32505 | -4/Garrison | Triggered checkpoint 32517 | -4/Garrison | Garrison Relay disabled 32544 | -4/Garrison | Build established: Botlord-Tank 32583 | -4/Garrison | Triggered checkpoint 32620 | -4/Garrison | Lost 3 allies 32679 | -4/Garrison | Entered Factory 32679 | -4/Factory | Accompanied by 4 allies 33037 | -4/Factory | Discovered exit to Upper Caves (range 7) 33054 | -4/Factory | Spotted B-86 Titan 33070 | -4/Factory | Destroyed B-86 Titan 33083 | -4/Factory | Build established: Botlord-Gunner 33100 | -4/Factory | Lost 3 allies 33124 | -4/Factory | Garrison activated, responded to threat 33135 | -4/Factory | Identified exit to Garrison 33135 | -4/Factory | Entered Garrison 33200 | -4/Garrison | Triggered checkpoint 33218 | -4/Garrison | Garrison Relay disabled 33302 | -4/Garrison | Triggered checkpoint 33304 | -4/Garrison | Triggered checkpoint 33533 | -4/Garrison | Triggered checkpoint 33543 | -4/Garrison | Triggered checkpoint 33616 | -4/Garrison | Discovered exit to Research (range 62) 33616 | -4/Garrison | Discovered exit to Research (range 37) 33616 | -4/Garrison | Discovered exit to Research (range 53) 33654 | -4/Garrison | Build established: Botlord-Tank 33723 | -4/Garrison | Triggered checkpoint 33744 | -4/Garrison | Garrison Relay disabled 33919 | -4/Garrison | Expanded RIF knowledge: Patrol Navigation 34346 | -4/Garrison | Triggered checkpoint 34380 | -4/Garrison | Garrison Relay disabled 34486 | -4/Garrison | Entered Research 34486 | -3/Research | Accompanied by 7 allies 34486 | -3/Research | Evolved 2 slots: Propulsion x1, Utility x1 34487 | -3/Research | Identified exit to Testing 34761 | -3/Research | Spotted B-86 Titan 34776 | -3/Research | Garrison activated, responded to threat 34836 | -3/Research | Lost 6 allies 34894 | -3/Research | Loaded intel: 5 recycling unit locations 34993 | -3/Research | Found Prototype Device 35003 | -3/Research | Identified Exp. EM Disruption Field 35371 | -3/Research | Found Adv. Powered Armor 35470 | -3/Research | Garrison activated, responded to threat 35630 | -3/Research | Lost 4 allies 35642 | -3/Research | Found Gamma Bomb Array 35731 | -3/Research | Cargo convoy interrupted 35736 | -3/Research | Spotted Striker 35750 | -3/Research | Spotted Striker 35762 | -3/Research | Spotted Executioner 35762 | -3/Research | Spotted Executioner 35818 | -3/Research | Entered Testing 35848 | -3/Testing | Lost 10 allies 36019 | -3/Testing | Found Prototype Ballistic Cannon 36022 | -3/Testing | Identified Omega Cannon 36137 | -3/Testing | System corruption reached 10% 36332 | -3/Testing | Found Prototype Device 36332 | -3/Testing | Identified Exp. Hardlight Generator 36481 | -3/Testing | Build established: Botlord-Mutant 36607 | -3/Testing | Found Prototype Device 36607 | -3/Testing | Identified 2N-1CE's Frost Array 36894 | -3/Testing | Found Prototype Device 36895 | -3/Testing | Identified Exp. Thermal Defense Suite 36918 | -3/Testing | Found Prototype Launcher 36930 | -3/Testing | Identified Hellfire Missile Launcher 37004 | -3/Testing | Found Warp Gun 37213 | -3/Testing | Found Prototype Protection 37214 | -3/Testing | Identified Med. Regenerative Plating 37218 | -3/Testing | Found Hvy. Regenerative Plating 37321 | -3/Testing | P-80 Master assimilated allied Analyst 8b 37578 | -3/Testing | Discovered new exit (range 10) 37592 | -3/Testing | System corruption reached 30% 37593 | -3/Testing | Found Prototype Hackware 37665 | -3/Testing | Identified exit to Research 37926 | -3/Testing | Identified System Mapper 38175 | -3/Testing | Entered Research 38175 | -2/Research | Evolved 2 slots: Propulsion x1, Utility x1 38315 | -2/Research | Loaded intel: 5 recycling unit locations 38420 | -2/Research | Discovered new exit (range 33) 38535 | -2/Research | Identified exit to Access 38543 | -2/Research | P-80 Master assimilated allied Warden 9a 38594 | -2/Research | Scrapoids reinforcements arrived? 38605 | -2/Research | Garrison activated, responded to threat 38646 | -2/Research | Lost 6 allies 38699 | -2/Research | Lost 10 parts (3p5n1u1w) 38731 | -2/Research | Destroyed 8 combat bots 38772 | -2/Research | Identified exit to Quarantine 39164 | -2/Research | Repaired Cmb. Linear Gravjet? 39322 | -2/Research | Lost 3 parts (2n1u) 39361 | -2/Research | System corruption reached 10% 39400 | -2/Research | Found Adv. Powered Armor 39707 | -2/Research | Entered Quarantine 39737 | -2/Quarantine | Discovered exit to Access (range 15) 39760 | -2/Quarantine | Found Alien Artifact 39847 | -2/Quarantine | Found Alien Slashing Weapon 39847 | -2/Quarantine | Identified Sigix Broadsword 39875 | -2/Quarantine | Found Alien Artifact 39875 | -2/Quarantine | Identified Dimensional Node Initializer 39875 | -2/Quarantine | Initialized slip node 39880 | -2/Quarantine | Found Alien Artifact 39930 | -2/Quarantine | Found Dimensional Node Initializer 39955 | -2/Quarantine | Identified Transdimensional Reconstructor 39974 | -2/Quarantine | Found Alien Artifact 39974 | -2/Quarantine | Identified Phase Redirector 40154 | -2/Quarantine | Found Alien Artifact 40298 | -2/Quarantine | Spotted Fortress 40300 | -2/Quarantine | Assimilated Fortress with formatsys_high 40477 | -2/Quarantine | Found Alien Reactor 40571 | -2/Quarantine | Build established: Hacker-Mutant 40613 | -2/Quarantine | Discovered new exit (range 6) 40613 | -2/Quarantine | Discovered new exit (range 6) 40616 | -2/Quarantine | Identified exit to Protoforge 40617 | -2/Quarantine | Identified exit to Section 7 40634 | -2/Quarantine | Entered Protoforge 40634 | -2/Protoforge | Accompanied by 1 ally 40684 | -2/Protoforge | Spotted Hotshot 40716 | -2/Protoforge | Superfortress began startup sequence 40732 | -2/Protoforge | Spotted Hotshot 40765 | -2/Protoforge | Destroyed Hotshot 41137 | -2/Protoforge | Identified Matter Drive 41146 | -2/Protoforge | Spotted EXE-6 41146 | -2/Protoforge | Spotted EXE-6 41281 | -2/Protoforge | Destroyed EXE-6 41287 | -2/Protoforge | Spotted SKR-2 41288 | -2/Protoforge | Destroyed EXE-6 41299 | -2/Protoforge | Found Prototype Device 41300 | -2/Protoforge | Identified Exp. Kinecellerator 41412 | -2/Protoforge | Spotted SKR-2 41412 | -2/Protoforge | Spotted SKR-2 41427 | -2/Protoforge | Core integrity fell below 50% 41453 | -2/Protoforge | Allies destroyed SKR-2 41461 | -2/Protoforge | Destroyed SKR-2 41480 | -2/Protoforge | Destroyed SKR-2 41486 | -2/Protoforge | Found Exp. Melee Analysis Suite 41497 | -2/Protoforge | Found Exp. Melee Analysis Suite 41569 | -2/Protoforge | Spotted EXE-6 41569 | -2/Protoforge | Spotted EXE-6 41591 | -2/Protoforge | Destroyed EXE-6 41624 | -2/Protoforge | Identified Hpw. Transdimensional Reconstructor 41624 | -2/Protoforge | Warped through subspace 41710 | -2/Protoforge | UFD initiated attack on Protoforge 41710 | -2/Protoforge | Loaded intel: 3 recycling unit locations 41746 | -2/Protoforge | Optimus greeted in Protoforge 41770 | -2/Protoforge | Found Exp. Core Analyzer 41865 | -2/Protoforge | Fabricated Cld. Antigrav System (x1) 41872 | -2/Protoforge | Fabricated Cld. Antigrav System? 41886 | -2/Protoforge | Met 7R-MNS 41937 | -2/Protoforge | Initialized slip node 41951 | -2/Protoforge | Spotted Executioner 41956 | -2/Protoforge | Identified Subatomic Replicator 41956 | -2/Protoforge | Used Subatomic Replicator to replicate Relay Coupler [Proto] 41966 | -2/Protoforge | Spotted Executioner 41971 | -2/Protoforge | Spotted Striker 41974 | -2/Protoforge | Spotted Striker 41984 | -2/Protoforge | Autoassimilated Striker with RIF 42011 | -2/Protoforge | Spotted Striker 42011 | -2/Protoforge | Spotted Striker 42018 | -2/Protoforge | Spotted Executioner 42018 | -2/Protoforge | Spotted Striker 42018 | -2/Protoforge | Spotted Executioner 42028 | -2/Protoforge | Destroyed Striker 42029 | -2/Protoforge | Spotted Executioner 42030 | -2/Protoforge | Destroyed Executioner 42057 | -2/Protoforge | P-80 Master assimilated allied 02F58-D 42060 | -2/Protoforge | Lost 12 allies 42087 | -2/Protoforge | Spotted Striker 42089 | -2/Protoforge | Spotted Striker 42093 | -2/Protoforge | Destroyed 7 combat bots 42114 | -2/Protoforge | Spotted Overlord 42125 | -2/Protoforge | Spotted Executioner 42129 | -2/Protoforge | Spotted Executioner 42133 | -2/Protoforge | Destroyed Executioner 42135 | -2/Protoforge | Destroyed Executioner 42144 | -2/Protoforge | Spotted Executioner 42146 | -2/Protoforge | Spotted Executioner 42182 | -2/Protoforge | Lost 5 allies 42202 | -2/Protoforge | Found UFD Drillbomb 42232 | -2/Protoforge | UFD reported confirmed Drillbomb installation 42235 | -2/Protoforge | Spotted Striker 42256 | -2/Protoforge | Installed UFD Drillbomb at designated target 42256 | -2/Protoforge | UFD reported confirmed Drillbomb installation 42279 | -2/Protoforge | Found UFD Drillbomb 42316 | -2/Protoforge | Installed UFD Drillbomb at designated target 42316 | -2/Protoforge | UFD reported confirmed Drillbomb installation 42324 | -2/Protoforge | Spotted Executioner 42324 | -2/Protoforge | Spotted Striker 42339 | -2/Protoforge | Spotted Executioner 42340 | -2/Protoforge | Destroyed Executioner 42342 | -2/Protoforge | Spotted Striker 42367 | -2/Protoforge | Spotted Hotshot 42368 | -2/Protoforge | Spotted Hotshot 42371 | -2/Protoforge | Spotted Hotshot 42381 | -2/Protoforge | Destroyed Hotshot 42384 | -2/Protoforge | Spotted Hotshot 42398 | -2/Protoforge | Destroyed Hotshot 42409 | -2/Protoforge | Spotted Hotshot 42410 | -2/Protoforge | Spotted Hotshot 42411 | -2/Protoforge | Found UFD Drillbomb 42412 | -2/Protoforge | Lost 10 allies 42471 | -2/Protoforge | Installed UFD Drillbomb at designated target 42471 | -2/Protoforge | UFD reported confirmed Drillbomb installation 42483 | -2/Protoforge | Spotted Striker 42484 | -2/Protoforge | Autoassimilated Striker with RIF 42484 | -2/Protoforge | Spotted Striker 42523 | -2/Protoforge | Lost 3 allies 42565 | -2/Protoforge | Spotted Executioner 42566 | -2/Protoforge | Spotted Striker 42590 | -2/Protoforge | Installed UFD Drillbomb at designated target 42590 | -2/Protoforge | UFD reported confirmed Drillbomb installation 42602 | -2/Protoforge | Spotted Striker 42615 | -2/Protoforge | Spotted Striker 42615 | -2/Protoforge | Spotted Executioner 42615 | -2/Protoforge | Spotted Executioner 42615 | -2/Protoforge | Spotted Striker 42618 | -2/Protoforge | Spotted Striker 42620 | -2/Protoforge | Spotted Striker 42660 | -2/Protoforge | Lost 6 allies 42673 | -2/Protoforge | Found UFD Drillbomb 42697 | -2/Protoforge | Destroyed Striker 42717 | -2/Protoforge | Spotted SKR-2 42719 | -2/Protoforge | Destroyed Executioner 42747 | -2/Protoforge | Spotted Striker 42748 | -2/Protoforge | Autoassimilated Striker with RIF 42748 | -2/Protoforge | Spotted Executioner 42767 | -2/Protoforge | Spotted Executioner 42768 | -2/Protoforge | Autoassimilated Executioner with RIF 42768 | -2/Protoforge | Spotted Executioner 42772 | -2/Protoforge | Destroyed Executioner 42784 | -2/Protoforge | Spotted Striker 42785 | -2/Protoforge | Spotted Striker 42786 | -2/Protoforge | Spotted Striker 42787 | -2/Protoforge | Spotted Striker 42804 | -2/Protoforge | Lost 10 allies 42857 | -2/Protoforge | Lost 4 allies 42882 | -2/Protoforge | Spotted Striker 42889 | -2/Protoforge | Spotted Striker 42891 | -2/Protoforge | P-80 Master assimilated allied 02FBO-D 42896 | -2/Protoforge | Spotted B-90 Cyclops 42897 | -2/Protoforge | Destroyed Striker 42901 | -2/Protoforge | P-80 Master assimilated allied 02FBN-D 42901 | -2/Protoforge | Spotted Executioner 42901 | -2/Protoforge | Spotted Striker 42902 | -2/Protoforge | Autoassimilated Striker with RIF 42903 | -2/Protoforge | UFD reported confirmed Drillbomb installation 42945 | -2/Protoforge | Lost 6 allies 43030 | -2/Protoforge | Spotted Executioner 43031 | -2/Protoforge | Autoassimilated Executioner with RIF 43053 | -2/Protoforge | Lost 4 allies 43072 | -2/Protoforge | Installed UFD Drillbomb at designated target 43072 | -2/Protoforge | UFD reported confirmed Drillbomb installation 43104 | -2/Protoforge | Found UFD Drillbomb 43143 | -2/Protoforge | Spotted Executioner 43144 | -2/Protoforge | Spotted Executioner 43144 | -2/Protoforge | Spotted Executioner 43145 | -2/Protoforge | Spotted Executioner 43159 | -2/Protoforge | Destroyed Executioner 43167 | -2/Protoforge | Destroyed Executioner 43171 | -2/Protoforge | Spotted Immortal 43171 | -2/Protoforge | Spotted Immortal 43176 | -2/Protoforge | Destroyed Immortal 43185 | -2/Protoforge | Destroyed Immortal 43197 | -2/Protoforge | Lost 5 allies 43215 | -2/Protoforge | Spotted Executioner 43215 | -2/Protoforge | Spotted Executioner 43240 | -2/Protoforge | P-80 Master assimilated allied 02FDA-D 43241 | -2/Protoforge | Spotted Executioner 43245 | -2/Protoforge | Core integrity fell below 20% 43269 | -2/Protoforge | Spotted Executioner 43295 | -2/Protoforge | Found Prototype Storage 43296 | -2/Protoforge | Identified Cep. Chromion Battery 43304 | -2/Protoforge | Lost 15 allies 43307 | -2/Protoforge | Spotted Hotshot 43386 | -2/Protoforge | Spotted Hotshot 43386 | -2/Protoforge | Spotted Hotshot 43386 | -2/Protoforge | Spotted Hotshot 43387 | -2/Protoforge | Spotted Executioner 43398 | -2/Protoforge | Destroyed Hotshot 43421 | -2/Protoforge | Spotted Striker 43422 | -2/Protoforge | Autoassimilated Striker with RIF 43430 | -2/Protoforge | Allies destroyed Hotshot 43434 | -2/Protoforge | Spotted Striker 43435 | -2/Protoforge | Spotted Striker 43468 | -2/Protoforge | Lost 14 allies 43552 | -2/Protoforge | Lost 5 allies 43558 | -2/Protoforge | Spotted Striker 43588 | -2/Protoforge | Spotted Executioner 43600 | -2/Protoforge | Build established: Scavenger-Scout 43609 | -2/Protoforge | Spotted Executioner 43643 | -2/Protoforge | Spotted Striker 43662 | -2/Protoforge | Spotted Hotshot 43662 | -2/Protoforge | Spotted Hotshot 43705 | -2/Protoforge | Installed UFD Drillbomb at designated target 43705 | -2/Protoforge | UFD reported confirmed Drillbomb installation 43714 | -2/Protoforge | Spotted Striker 43716 | -2/Protoforge | Spotted Striker 43736 | -2/Protoforge | Spotted Executioner 43737 | -2/Protoforge | Autoassimilated Executioner with RIF 43755 | -2/Protoforge | Spotted Striker 43791 | -2/Protoforge | Found UFD Drillbomb 43791 | -2/Protoforge | Spotted Striker 43794 | -2/Protoforge | Spotted Striker 43803 | -2/Protoforge | Destroyed Striker 43818 | -2/Protoforge | Spotted Striker 43821 | -2/Protoforge | Spotted Executioner 43834 | -2/Protoforge | Spotted Striker 43872 | -2/Protoforge | Lost 19 allies 43890 | -2/Protoforge | Found Prototype Device 43891 | -2/Protoforge | Identified Cep. Antimissile System 43903 | -2/Protoforge | Found Adv. Kinecellerator 43945 | -2/Protoforge | Spotted Striker 43946 | -2/Protoforge | Autoassimilated Striker with RIF 43947 | -2/Protoforge | Spotted Striker 43959 | -2/Protoforge | Destroyed Striker 43972 | -2/Protoforge | Found UFD Drillbomb 43991 | -2/Protoforge | Spotted Striker 43991 | -2/Protoforge | Spotted Striker 43998 | -2/Protoforge | Destroyed Striker 44003 | -2/Protoforge | Spotted Striker 44031 | -2/Protoforge | Spotted Executioner 44061 | -2/Protoforge | Lost 9 allies 44097 | -2/Protoforge | Spotted Executioner 44109 | -2/Protoforge | Spotted Hotshot 44110 | -2/Protoforge | Spotted Hotshot 44122 | -2/Protoforge | Spotted Executioner 44156 | -2/Protoforge | Installed UFD Drillbomb at designated target 44156 | -2/Protoforge | UFD reported confirmed Drillbomb installation 44171 | -2/Protoforge | Destroyed Executioner 44203 | -2/Protoforge | Spotted Executioner 44203 | -2/Protoforge | Spotted Executioner 44204 | -2/Protoforge | Autoassimilated Executioner with RIF 44220 | -2/Protoforge | Spotted Executioner 44353 | -2/Protoforge | Spotted Striker 44382 | -2/Protoforge | Found Adv. Kinecellerator 44404 | -2/Protoforge | Found UFD Drillbomb 44410 | -2/Protoforge | Spotted Executioner 44412 | -2/Protoforge | Autoassimilated Executioner with RIF 44412 | -2/Protoforge | Spotted Executioner 44412 | -2/Protoforge | Spotted Hotshot 44413 | -2/Protoforge | Autoassimilated Hotshot with RIF 44413 | -2/Protoforge | Spotted Striker 44413 | -2/Protoforge | Spotted Executioner 44415 | -2/Protoforge | Autoassimilated Executioner with RIF 44485 | -2/Protoforge | Spotted Executioner 44488 | -2/Protoforge | Spotted Executioner 44490 | -2/Protoforge | Spotted Executioner 44551 | -2/Protoforge | Lost 14 allies 44684 | -2/Protoforge | Discovered exit to Access (range 8) 44685 | -2/Protoforge | Spotted Executioner 44685 | -2/Protoforge | Spotted Striker 44700 | -2/Protoforge | Spotted Striker 44700 | -2/Protoforge | Spotted Immortal 44861 | -2/Protoforge | Spotted Striker 44861 | -2/Protoforge | Spotted Striker 44874 | -2/Protoforge | Spotted Striker 44874 | -2/Protoforge | Spotted Hotshot 44875 | -2/Protoforge | Spotted Hotshot 44875 | -2/Protoforge | Spotted Hotshot 44875 | -2/Protoforge | Spotted Striker 44960 | -2/Protoforge | Lost 6 allies 44992 | -2/Protoforge | Spotted Striker 44999 | -2/Protoforge | Spotted Striker 45003 | -2/Protoforge | Spotted Executioner 45029 | -2/Protoforge | Spotted Striker 45031 | -2/Protoforge | P-80 Master assimilated allied 02FKD-D 45033 | -2/Protoforge | Spotted Executioner 45067 | -2/Protoforge | Lost 8 allies 45181 | -2/Protoforge | Spotted Executioner 45181 | -2/Protoforge | Spotted Executioner 45214 | -2/Protoforge | Lost 3 allies 45215 | -2/Protoforge | Spotted Striker 45217 | -2/Protoforge | Spotted Striker 45219 | -2/Protoforge | Destroyed Striker 45275 | -2/Protoforge | Lost 7 allies 45302 | -2/Protoforge | Spotted Striker 45307 | -2/Protoforge | Spotted Striker 45310 | -2/Protoforge | Spotted Striker 45313 | -2/Protoforge | Spotted Executioner 45363 | -2/Protoforge | Spotted 02F54-K 45401 | -2/Protoforge | Lost 13 allies 45403 | -2/Protoforge | Spotted Hotshot 45403 | -2/Protoforge | Spotted Hotshot 45403 | -2/Protoforge | Spotted Hotshot 45404 | -2/Protoforge | Autoassimilated Hotshot with RIF 45404 | -2/Protoforge | Autoassimilated Hotshot with RIF 45404 | -2/Protoforge | Spotted Hotshot 45404 | -2/Protoforge | Spotted Hotshot 45405 | -2/Protoforge | Spotted Hotshot 45405 | -2/Protoforge | Spotted Hotshot 45411 | -2/Protoforge | Spotted Striker 45412 | -2/Protoforge | Destroyed Hotshot 45419 | -2/Protoforge | Destroyed Hotshot 45435 | -2/Protoforge | Destroyed Hotshot 45497 | -2/Protoforge | Spotted Executioner 45504 | -2/Protoforge | Spotted Striker 45504 | -2/Protoforge | Spotted Striker 45505 | -2/Protoforge | Autoassimilated Striker with RIF 45506 | -2/Protoforge | Spotted Executioner 45565 | -2/Protoforge | Lost 21 allies 45568 | -2/Protoforge | P-80 Master assimilated allied 02FMS-D 45575 | -2/Protoforge | Found Unknown Device 45581 | -2/Protoforge | Identified 0bPrime Scrap Suit 45591 | -2/Protoforge | Spotted Executioner 45592 | -2/Protoforge | Autoassimilated Executioner with RIF 45626 | -2/Protoforge | P-80 Master assimilated allied 02FMM-D 45628 | -2/Protoforge | Spotted Executioner 45628 | -2/Protoforge | Spotted Striker 45648 | -2/Protoforge | Spotted Executioner 45683 | -2/Protoforge | Lost 7 allies 45699 | -2/Protoforge | Spotted Striker 45705 | -2/Protoforge | Spotted Executioner 45708 | -2/Protoforge | P-80 Master assimilated allied 02FNC-D 45734 | -2/Protoforge | Spotted Hotshot 45735 | -2/Protoforge | Spotted Hotshot 45735 | -2/Protoforge | Spotted Hotshot 45736 | -2/Protoforge | Spotted Hotshot 45738 | -2/Protoforge | Spotted Striker 45739 | -2/Protoforge | Autoassimilated Striker with RIF 45746 | -2/Protoforge | Destroyed Hotshot 45750 | -2/Protoforge | Spotted Striker 45752 | -2/Protoforge | Destroyed Hotshot 45808 | -2/Protoforge | Spotted Decapitator 45811 | -2/Protoforge | Spotted Decapitator 45817 | -2/Protoforge | Spotted Decapitator 45818 | -2/Protoforge | Spotted Decapitator 45818 | -2/Protoforge | Spotted Decapitator 45823 | -2/Protoforge | P-80 Master assimilated allied Lugger 709 45830 | -2/Protoforge | Spotted Executioner 45874 | -2/Protoforge | Lost 22 allies 45874 | -2/Protoforge | Spotted Executioner 45880 | -2/Protoforge | Spotted Executioner 45881 | -2/Protoforge | Autoassimilated Executioner with RIF 45902 | -2/Protoforge | Spotted Executioner 45907 | -2/Protoforge | Spotted Executioner 45930 | -2/Protoforge | Spotted Striker 45931 | -2/Protoforge | Spotted Executioner 45956 | -2/Protoforge | Spotted Executioner 45959 | -2/Protoforge | Spotted Striker 45970 | -2/Protoforge | Spotted Hotshot 45970 | -2/Protoforge | Spotted Hotshot 45971 | -2/Protoforge | Autoassimilated Hotshot with RIF 45971 | -2/Protoforge | Spotted Hotshot 45977 | -2/Protoforge | Destroyed Hotshot 46020 | -2/Protoforge | Spotted Striker 46021 | -2/Protoforge | Spotted Striker 46074 | -2/Protoforge | Spotted Striker 46085 | -2/Protoforge | Spotted Striker 46088 | -2/Protoforge | Lost 17 allies 46095 | -2/Protoforge | P-80 Master assimilated allied 02FON-D 46137 | -2/Protoforge | Spotted Executioner 46139 | -2/Protoforge | Spotted Executioner 46139 | -2/Protoforge | Spotted Striker 46140 | -2/Protoforge | Autoassimilated Executioner with RIF 46140 | -2/Protoforge | P-80 Master assimilated allied 02FOZ-D 46148 | -2/Protoforge | Spotted Striker 46149 | -2/Protoforge | Spotted Executioner 46150 | -2/Protoforge | Destroyed by Executioner with Helical Railgun Last Messages --------------- 46146_ Lugger 686 collects UFD Drillbomb. 46146_ Slug penetrates 02F72-K. 46147_ Slug penetrates Striker. 46147_ Slug penetrates P-80 Master. 46147_ P-80 Master suffers critical hit (Destroy). 46147_ P-80 Master destroyed. 46148_ 02FPD-D destroyed. 46149_ HV Slug penetrates 02FPB-D. 46149_ 02FPB-D suffers critical hit (Destroy). 46149_ 02FPB-D destroyed. 46149_ Slug penetrates Striker. 46149_ Striker suffers critical hit (Destroy). 46149_ Striker destroyed. 46149_ Striker suffers critical hit (Destroy). 46149_ 02FOY-D suffers critical hit (Destroy). 46149_ 02FOY-D destroyed. 46149_ Slug penetrates Striker. 46149_ Slug penetrates G-73 Enforcer. 46150_ 02F72-K destroyed. 46150_ Penetrated by Slug. Map ----- +----------------------------------------------------+ | "#" ^+ ""T"" + "% # ##?????# | | "#%^ # """"" #####""+"###"%" # """ ##?????# | | """ "############## #"" # """ ##?????# | | #" %"##############% % %""" + """ ##?????# | | ""#" ##???????# ###%"= %;" # ##?????# | | ]! % %%####?????# # #[%"[ ;[% %# "T" ##?????# | | %*%= * #????# #!%=!% ;%%=##""#####?????# | | [[!!!= % ###### #=%**[ ;; %[# #######????# | | %!%== %[ ## # #!![!;;;;;;%% * ##?# #????# | | %%[! !!* ### /% *! ; %%; ## #????# | | /%%! %% ! % ### ;;=%=;;;;;=% % # # ###### | | %%=/ %!*! # [ %=! ;;;;;;##;## # # | | [%[ %%%=[*!! [%!=! ; " # # | | =%!%*%%g%!====* ; *[|!=!*[=!; " ## | | %![%%%!E!==%=[[ ;!=!=%!%*[=!!!] % " # | | *%%[%%%Kg%!!=[!| !;[% [!%!%=**!=! % " # | | %!=!%gg%%%%%%!*![!!*%[=!!%%!%%%%!!* !; # | | && %%%g&[%%%%%%%!!%=%/!*!!%%%%; %%!! %n ;!!!#! | | %%&!%%&%%%%%%%%%!%%==%[!%]%=%!% == %% ;!!*#! | | & %=[&%&%%%%%%%%![[&%[%!!%!!=! % %% ; *!# | | =" !%!=*!!%%%&*!%=*%!*[!|!!| %% !! ; %"=#" | | *|=!=[*%%&%%=!s[!=!%*%[*& %%%%%%%% %%;%%%%#% | | %" !*=|%%%%A =%s==%= !=|[* %%%%%n% %%%% %n%%% | | " !! %&% %%!==*[%= !%%%%%%%%%%%%%%%%%%%%%% | | %%! ; %%%%!&%%%%[E%%m%%%%%%%%%%%m%%%%%%%n%%%% | | %| ; ;%%%%%%s%!%A!%@%%%%%%%%m%% %%%%;%%%%#% | | *%";;; ;; ;%% *[!E!%!*%%% % = %%% % %% %;% #% | | !#*%## % [==!=![!=%% %% =!%%%= ! % ; #% | | %[*#?# # & !%!| !*%%![[!%% *%= !=* !# | | =# # = %# !%% [![[= %[!%!!=%% !==;! ! * [# | | ##""" *# =*# %%= % !=!%==[[!*% ! [ # | | !! !%[ =%% ![ [!*=*= %=% # | | """"" =!%# * !!!==! % [%= # # # | | *""""!% # !*!=% %% #### | | !"%"" " # !=]% % % ## | | % % # % /] %%!;;; % "" "# | | "####### % % # ; ! % ! !%m;; % """ ## | | ### # # # % =% % %= % "T ## | | ##???# # ## %/% **/ %%;;## """ ## | | #????# # # = !! % = ! ### ##%# "" ## | | #????? ## =%=%! %==# ### ## # ## | | #???????? ## [!] # *[#########+######## | | #???????## ; !*%%! % ;!%####### ##?# | | #??????# " *]%!!!% == % # ss ##?# | | #??????### " === * % # """" ##?# | | #??????# # "" % % #s"""" ##?#" | | #??????## ## ! " % % % + """" #### | | #???????#?# % ";+"#### % #s"""" #### | | ############ "% ## # # ## # | | ################""%"%"#"## # # # # | +----------------------------------------------------+ Best States ------------- Heat Dissipation 149 Coolant Potential 100 Energy Generation 53 Energy Capacity 1650 Matter Stores 300 Matter Capacity 300 Sight Range 23 Robot Scan Range 20 Terrain Scan Density 10 Jamming Range 22 Armor Coverage 600 Resistance: TH 15 Resistance: EM 25 Power Shielding 66 Propulsion Shielding 66 Utility Shielding 66 Melee Speed Boost 30 Evasion (%) 82 Targeting Accuracy 8 Melee Accuracy 12 Core Analysis 8 Recoil Reduction 3 Kinecelleration 50 Offensive Hacking 48 Defensive Hacking 14 Relay Coupler Types 5 Relay Coupler Value 89 Authchip Count 3 Item Schematics ----------------- Huge Storage Unit | -10/Materials | Hacked Hcp. Storage Unit | -10/Materials | Hacked Cmb. Airjet | -9/Materials | Scanalyzed Hacking Suite | -8/Materials | Hacked Imp. Utility Shielding | -8/Materials | Hacked Plasma Cannon | -8/Recycling | Hacked Exp. Sensor Array | -6/Factory | Scanalyzed IFF Parser | -6/Factory | Scanalyzed CPS Tube | -6/Factory | Scanalyzed Imp. Hacking Suite | -6/Factory | Scanalyzed System Shield | -6/Factory | Scanalyzed Proton Cannon | -6/Factory | Hacked Exp. Transmission Jammer | -4/Factory | Scanalyzed Exp. Gyrokinetic Inverter | -4/Factory | Scanalyzed Imp. Quantum Reactor | -4/Factory | Scanalyzed Cmb. Linear Gravjet | -4/Factory | Scanalyzed Graphene Brace | -4/Factory | Scanalyzed Spectral Analyzer | -3/Testing | Hacked Prc. Matter Filter | -3/Testing | Archive Com. Mass Driver | -3/Testing | Archive Exp. EM Disruption Field | -3/Testing | Archive Enh. Biometal Leg | -3/Testing | Archive Exp. Cooling System | -3/Testing | Archive Com. Tesla Bomb Launcher | -3/Testing | Archive Enh. Armored Leg | -3/Testing | Archive Gravity Flail | -3/Testing | Archive Lgt. Regenerative Plating | -3/Testing | Hacked Exp. EM Shield | -2/Quarantine | Reported Cld. Antigrav System | -2/Quarantine | Reported Cld. Proton Cannon | -2/Quarantine | Reported Hvy. Tesla Rifle | -2/Quarantine | Reported Com. Particle Reactor | -2/Quarantine | Reported Adv. Quantum Shading Machine | -2/Quarantine | Reported Exp. Melee Analysis Suite | -2/Quarantine | Reported Quantum Capacitor | -2/Quarantine | Reported Lrn. Tractor Beam | -2/Quarantine | Reported Exp. Reaction Control System | -2/Quarantine | Reported Particle Reactor | -2/Quarantine | Reported Enh. Coil Gun | -2/Quarantine | Reported Exp. ECM Suite | -2/Quarantine | Reported Electron Diverter | -2/Quarantine | Reported Adv. Myomer Leg | -2/Quarantine | Reported Hvy. Wave Gun | -2/Quarantine | Reported Hvy. Gauss Cannon | -2/Quarantine | Reported Cld. Plasma Rifle | -2/Quarantine | Reported Kinetic Spear | -2/Quarantine | Reported Enh. Armored Heavy Treads | -2/Quarantine | Reported Cld. Linear Gravjet | -2/Quarantine | Reported Mni. Smartbomb Launcher | -2/Quarantine | Reported Enh. Hardcell Cannon | -2/Quarantine | Reported Stealth Drone Bay | -2/Quarantine | Reported Imp. Matter Neutralizer | -2/Quarantine | Reported Adv. Micro-nuke Launcher | -2/Quarantine | Reported Adv. Force Field | -2/Quarantine | Reported Imp. Point Defense System | -2/Quarantine | Reported Graviton Reactor | -2/Quarantine | Reported Hyp. Railgun | -2/Quarantine | Reported Cld. Impulse Thruster | -2/Quarantine | Reported Quantum Shading Machine | -2/Quarantine | Reported Exp. Energy Well | -2/Quarantine | Reported Adv. KE Penetrator | -2/Quarantine | Reported Adv. ECM Suite | -2/Quarantine | Reported Adv. Powered Armor | -2/Quarantine | Reported Exp. System Shield | -2/Quarantine | Reported Exp. Power Amplifier | -2/Quarantine | Reported Linear Gravjet | -2/Quarantine | Reported Reaction Control System | -2/Quarantine | Reported Graviton Cannon | -2/Quarantine | Reported Exp. Armor Integrity Analyzer | -2/Quarantine | Reported Exp. Core Analyzer | -2/Quarantine | Reported Exp. Biometal Leg | -2/Quarantine | Reported Exp. Thermal Generator | -2/Quarantine | Reported Cld. Q-thruster | -2/Quarantine | Reported Tactical Quantum Warhead | -2/Quarantine | Reported Exp. Shield Generator | -2/Quarantine | Reported Exp. Thermal Shield | -2/Quarantine | Reported Adv. Dynamic Insulation System | -2/Quarantine | Reported Centrium Medium Armor Plating | -2/Quarantine | Reported Exp. Utility Shielding | -2/Quarantine | Reported Ragnarok Missile Launcher | -2/Quarantine | Reported Prc. Energy Filter | -2/Quarantine | Reported Adv. Energy Well | -2/Quarantine | Reported Exp. Terrain Scanner | -2/Quarantine | Reported Exp. Biometal Heavy Treads | -2/Quarantine | Reported Exp. Flexi-carbon Leg | -2/Quarantine | Reported Cld. Field Propulsion Drive | -2/Quarantine | Reported Lrn. Phase Cannon | -2/Quarantine | Reported Imp. Power Shielding | -2/Quarantine | Reported Imp. Remote Shield | -2/Quarantine | Reported Com. Linear Accelerator | -2/Quarantine | Reported Cld. Gravmag System | -2/Quarantine | Reported Exp. Q-thruster | -2/Quarantine | Reported Adv. Melee Analysis Suite | -2/Quarantine | Reported Adv. Trap Scanner | -2/Quarantine | Reported Centrium Heavy Armor Plating | -2/Quarantine | Reported Molecular Scythe | -2/Quarantine | Reported ECM Suite | -2/Quarantine | Reported Exp. Heat Sink | -2/Quarantine | Reported Hvy. Dispersion Rifle | -2/Quarantine | Reported Hds. Centrium Wheel | -2/Quarantine | Reported Diametric Drive | -2/Quarantine | Reported Hellfire Missile Launcher | -2/Quarantine | Reported Adv. Plasma Rifle | -2/Quarantine | Reported Multireflex Exoskeleton | -2/Quarantine | Reported Exp. Target Analyzer | -2/Quarantine | Reported Helical Railgun | -2/Quarantine | Reported Exp. Biometal Medium Treads | -2/Quarantine | Reported Exp. Focal Shield | -2/Quarantine | Reported Enh. Multireflex Exoskeleton | -2/Quarantine | Reported Phase Gun | -2/Quarantine | Reported VSS Leg | -2/Quarantine | Reported Adv. Particle Accelerator | -2/Quarantine | Reported Exp. Field Recycling Unit | -2/Quarantine | Reported Exp. Coolant Injector | -2/Quarantine | Reported Ionic Axe | -2/Quarantine | Reported Adv. Kinecellerator | -2/Quarantine | Reported Antigrav System | -2/Quarantine | Reported Particle Accelerator | -2/Quarantine | Reported Adv. Reaction Control System | -2/Quarantine | Reported Exp. System Guard | -2/Quarantine | Reported Imp. Q-thruster | -2/Quarantine | Reported Adv. Thermal Defense Suite | -2/Quarantine | Reported Hds. Centrium Heavy Treads | -2/Quarantine | Reported Gravity Neutralizer | -2/Quarantine | Reported Exp. Optical Array | -2/Quarantine | Reported Hvy. Proton Cannon | -2/Quarantine | Reported Vibroblade | -2/Quarantine | Reported Robot Schematics ------------------ M-13 Machinist | -10/Materials | Hacked S-43 Plague | -3/Testing | Archive W-44 Eye | -3/Testing | Archive G-73 Enforcer | -2/Quarantine | Hacked Fabricated ------------ Cmb. Airjet | x2 | -6/Factory | Authchip Cmb. Airjet | x2 | -6/Factory | Authchip Cmb. Airjet | x2 | -5/Factory | Authchip Exp. Sensor Array | x1 | -4/Factory | Authchip M-13 Machinist | x1 | -4/Factory | Authchip Cld. Antigrav System | x1 | -2/Protoforge | Authchip Cld. Antigrav System | x1 | -2/Protoforge Repaired ---------- Imp. Treads | 35% | -8/Materials Imp. Treads | 38% | -8/Storage Imp. Treads | 40% | -8/Storage Lgt. Armor Plating | 45% | -8/Storage Arm. Wheel | 22% | -6/Factory Mic. Fission Core | 36% | -5/Factory Adv. Force Field | 99% | -5/Factory | Broken Antimatter Reactor | 1% | -4/Factory HERF Cannon | 30% | -4/Factory | Broken Cmb. Linear Gravjet | 39% | -2/Research Alien Tech Used ----------------- Sigix Broadsword Dimensional Node Initializer Phase Redirector Matter Drive High-powered Transdimensional Reconstructor Subatomic Replicator Achievements -------------- None Challenges ------------ None Game ------ Seed DiametricWeaponsMallet Manual? 0 Play Time 14:34:06 Cumulative 864.7 hours Start 2025.05.16 @ 20:17:46 End 2025.05.18 @ 00:12:24 Sessions 13 Manual Loads 0 Difficulty Rogue Special Mode None Game No. 166 Rogue 166 Adventurer 0 Explorer 0 Win Type - Total 49 Types 23/4/7/1/2/1/6/2/2/1 Lore% 88 Gallery% 91 Achievement% 91 Wizard Run 0 Options --------- Layout 0 ASCII 0 Keyboard 0 Movement Numpad Keybinds 0 Fullscreen 1 Font 18/SmallcapsGlow Map View 76x50 Zoom Use 0% Tactical HUD 1 Map Filters NONE Filters NONE Steam 1 RUN: ea63fb56-45ee-4ab0-a093-9a224b82ba49